Workbook

Sheet Raw TPD
A1: 8L IC2H4OH/Ni(100) adsorbed at 100 K
A2: TPD, Qing's data
A5: T/K | B5: 27 amu | C5: 29 amu | D5: 31 amu | E5: 43 amu
A6: 90.32 | B6: 0.688278 | C6: 0.663858 | D6: 0.566178 | E6: 0.574481
A7: 92.91 | B7: 0.716606 | C7: 0.661416 | D7: 0.566667 | E7: 0.581807
A8: 92.91 | B8: 0.757631 | C8: 0.679976 | D8: 0.564713 | E8: 0.578877
A9: 95.46 | B9: 0.821612 | C9: 0.68779 | D9: 0.566178 | E9: 0.587668
A10: 97.97 | B10: 0.913431 | C10: 0.683883 | D10: 0.570574 | E10: 0.581319
A11: 100.44 | B11: 0.916361 | C11: 0.681929 | D11: 0.564713 | E11: 0.579853
A12: 102.87 | B12: 0.890965 | C12: 0.707326 | D12: 0.564225 | E12: 0.583272
A13: 105.26 | B13: 0.829915 | C13: 0.705861 | D13: 0.564225 | E13: 0.587668
A14: 109.94 | B14: 0.792796 | C14: 0.693162 | D14: 0.566178 | E14: 0.581807
A15: 114.48 | B15: 0.776191 | C15: 0.699023 | D15: 0.566178 | E15: 0.590598
A16: 118.9 | B16: 0.77326 | C16: 0.69072 | D16: 0.565201 | E16: 0.588156
A17: 123.19 | B17: 0.760562 | C17: 0.7 | D17: 0.567643 | E17: 0.593529
A18: 125.29 | B18: 0.782051 | C18: 0.745421 | D18: 0.564225 | E18: 0.612576
A19: 131.42 | B19: 0.753724 | C19: 0.749817 | D19: 0.564225 | E19: 0.61453
A20: 135.38 | B20: 0.766422 | C20: 0.747863 | D20: 0.564225 | E20: 0.596948
A21: 139.24 | B21: 0.77326 | C21: 0.717582 | D21: 0.562271 | E21: 0.599878
A22: 141.13 | B22: 0.776679 | C22: 0.709768 | D22: 0.566178 | E22: 0.592552
A23: 144.86 | B23: 0.771306 | C23: 0.699023 | D23: 0.56569 | E23: 0.601343
A24: 148.5 | B24: 0.833333 | C24: 0.72149 | D24: 0.563736 | E24: 0.601343
A25: 152.06 | B25: 0.859707 | C25: 0.742002 | D25: 0.569597 | E25: 0.625763
A26: 153.82 | B26: 0.859707 | C26: 0.766422 | D26: 0.573993 | E26: 0.613065
A27: 157.27 | B27: 0.877778 | C27: 0.741514 | D27: 0.568132 | E27: 0.606716
A28: 158.98 | B28: 0.896825 | C28: 0.75177 | D28: 0.573993 | E28: 0.61453
A29: 160.67 | B29: 0.906593 | C29: 0.762515 | D29: 0.575946 | E29: 0.612088
A30: 164 | B30: 0.946154 | C30: 0.736142 | D30: 0.593529 | E30: 0.604762
A31: 165.64 | B31: 0.948596 | C31: 0.765446 | D31: 0.595971 | E31: 0.606716
A32: 167.27 | B32: 1.040904 | C32: 0.765446 | D32: 0.600366 | E32: 0.611111
A33: 168.88 | B33: 1.044322 | C33: 0.763004 | D33: 0.602808 | E33: 0.602808
A34: 172.08 | B34: 1.10928 | C34: 0.768864 | D34: 0.609646 | E34: 0.616972
A35: 173.66 | B35: 1.143468 | C35: 0.784005 | D35: 0.615507 | E35: 0.61746
A36: 176.79 | B36: 1.201587 | C36: 0.780098 | D36: 0.604274 | E36: 0.61746
A37: 178.34 | B37: 1.276313 | C37: 0.791331 | D37: 0.605739 | E37: 0.622344
A38: 179.88 | B38: 1.296825 | C38: 0.803541 | D38: 0.609646 | E38: 0.611111
A39: 182.93 | B39: 1.397436 | C39: 0.817705 | D39: 0.621368 | E39: 0.621368
A40: 185.94 | B40: 1.351526 | C40: 0.838217 | D40: 0.638462 | E40: 0.627717
A41: 188.93 | B41: 1.385226 | C41: 0.814774 | D41: 0.634066 | E41: 0.635043
A42: 191.88 | B42: 1.412088 | C42: 0.832357 | D42: 0.634066 | E42: 0.636508
A43: 194.81 | B43: 1.325153 | C43: 0.850916 | D43: 0.654579 | E43: 0.637973
A44: 197.72 | B44: 1.236264 | C44: 0.836752 | D44: 0.6663 | E44: 0.647253
A45: 200.6 | B45: 1.214774 | C45: 0.884615 | D45: 0.670208 | E45: 0.664347
A46: 204.89 | B46: 1.16105 | C46: 0.89536 | D46: 0.686813 | E46: 0.685348
A47: 207.73 | B47: 1.169353 | C47: 0.89536 | D47: 0.702442 | E47: 0.695116
A48: 210.55 | B48: 1.225519 | C48: 0.936874 | D48: 0.706838 | E48: 0.717582
A49: 213.36 | B49: 1.205495 | C49: 0.917338 | D49: 0.704884 | E49: 0.701954
A50: 217.55 | B50: 1.109768 | C50: 0.880708 | D50: 0.665324 | E50: 0.681929
A51: 220.32 | B51: 1.031624 | C51: 0.852381 | D51: 0.644322 | E51: 0.673626
A52: 223.14 | B52: 0.989133 | C52: 0.874847 | D52: 0.628205 | E52: 0.676068
A53: 225.84 | B53: 0.952991 | C53: 0.885104 | D53: 0.624298 | E53: 0.645788
A54: 228.58 | B54: 0.905128 | C54: 0.862149 | D54: 0.616484 | E54: 0.655067
A55: 231.31 | B55: 0.899267 | C55: 0.836264 | D55: 0.61746 | E55: 0.643834
A56: 234.03 | B56: 0.861172 | C56: 0.828938 | D56: 0.603297 | E56: 0.657509
A57: 236.74 | B57: 0.869475 | C57: 0.833822 | D57: 0.607692 | E57: 0.637973
A58: 238.08 | B58: 0.820147 | C58: 0.840171 | D58: 0.606716 | E58: 0.649206
A59: 240.77 | B59: 0.827961 | C59: 0.812821 | D59: 0.608669 | E59: 0.636508
A60: 243.44 | B60: 0.800122 | C60: 0.847985 | D60: 0.597924 | E60: 0.62674
A61: 246.09 | B61: 0.825031 | C61: 0.818193 | D61: 0.597436 | E61: 0.631136
A62: 247.42 | B62: 0.817705 | C62: 0.830403 | D62: 0.590598 | E62: 0.63895
A63: 250.04 | B63: 0.838706 | C63: 0.801099 | D63: 0.594017 | E63: 0.64188
A64: 252.65 | B64: 0.80989 | C64: 0.828449 | D64: 0.594017 | E64: 0.635531
A65: 255.24 | B65: 0.791819 | C65: 0.81917 | D65: 0.593529 | E65: 0.639438
A66: 257.8 | B66: 0.814774 | C66: 0.842125 | D66: 0.594505 | E66: 0.640415
A67: 260.33 | B67: 0.783517 | C67: 0.851893 | D67: 0.589133 | E67: 0.638462
A68: 262.84 | B68: 0.792796 | C68: 0.837729 | D68: 0.582784 | E68: 0.647741
A69: 265.31 | B69: 0.781563 | C69: 0.837241 | D69: 0.586203 | E69: 0.638462
A70: 269 | B70: 0.804029 | C70: 0.820635 | D70: 0.587668 | E70: 0.645788
A71: 271.33 | B71: 0.785959 | C71: 0.857753 | D71: 0.588645 | E71: 0.632601
A72: 273.68 | B72: 0.795238 | C72: 0.855311 | D72: 0.588156 | E72: 0.63895
A73: 276.06 | B73: 0.780586 | C73: 0.866545 | D73: 0.583272 | E73: 0.644811
A74: 279.64 | B74: 0.771795 | C74: 0.853358 | D74: 0.577411 | E74: 0.644811
A75: 282.02 | B75: 0.793285 | C75: 0.872894 | D75: 0.579365 | E75: 0.647253
A76: 285.59 | B76: 0.779121 | C76: 0.862149 | D76: 0.587668 | E76: 0.656532
A77: 287.97 | B77: 0.788401 | C77: 0.869475 | D77: 0.58083 | E77: 0.663858
A78: 291.6 | B78: 0.787424 | C78: 0.874847 | D78: 0.578877 | E78: 0.643834
A79: 293.93 | B79: 0.772772 | C79: 0.910989 | D79: 0.58083 | E79: 0.652625
A80: 297.56 | B80: 0.77033 | C80: 0.886081 | D80: 0.582295 | E80: 0.649206
A81: 301.09 | B81: 0.780098 | C81: 0.869475 | D81: 0.583272 | E81: 0.646276
A82: 303.47 | B82: 0.781563 | C82: 0.862149 | D82: 0.581807 | E82: 0.652625
A83: 305.86 | B83: 0.784005 | C83: 0.873871 | D83: 0.583761 | E83: 0.657021
A84: 308.25 | B84: 0.778144 | C84: 0.88022 | D84: 0.575458 | E84: 0.653114
A85: 311.83 | B85: 0.785959 | C85: 0.889011 | D85: 0.58083 | E85: 0.654579
A86: 314.21 | B86: 0.792308 | C86: 0.868987 | D86: 0.585714 | E86: 0.65409
A87: 316.6 | B87: 0.775702 | C87: 0.865568 | D87: 0.582784 | E87: 0.651648
A88: 318.99 | B88: 0.764957 | C88: 0.872894 | D88: 0.5779 | E88: 0.640904
A89: 321.38 | B89: 0.774725 | C89: 0.869475 | D89: 0.576923 | E89: 0.645299
A90: 324.96 | B90: 0.782051 | C90: 0.867033 | D90: 0.570574 | E90: 0.643834
A91: 327.4 | B91: 0.775214 | C91: 0.862149 | D91: 0.58083 | E91: 0.651648
A92: 329.74 | B92: 0.768864 | C92: 0.842613 | D92: 0.576435 | E92: 0.641392
A93: 332.13 | B93: 0.775214 | C93: 0.853846 | D93: 0.579853 | E93: 0.634066
A94: 334.52 | B94: 0.803053 | C94: 0.844567 | D94: 0.579853 | E94: 0.635043
A95: 336.92 | B95: 0.788401 | C95: 0.847985 | D95: 0.573016 | E95: 0.642369
A96: 339.31 | B96: 0.784005 | C96: 0.867521 | D96: 0.574481 | E96: 0.641392
A97: 341.7 | B97: 0.77033 | C97: 0.84652 | D97: 0.576923 | E97: 0.646276
A98: 345.29 | B98: 0.784493 | C98: 0.840171 | D98: 0.574481 | E98: 0.657998
A99: 347.69 | B99: 0.786447 | C99: 0.858242 | D99: 0.573993 | E99: 0.636996
A100: 350.08 | B100: 0.789377 | C100: 0.859219 | D100: 0.578877 | E100: 0.640415
A101: 353.67 | B101: 0.806471 | C101: 0.851893 | D101: 0.572039 | E101: 0.628694
A102: 356.12 | B102: 0.796215 | C102: 0.836752 | D102: 0.571551 | E102: 0.641392
A103: 359.67 | B103: 0.795727 | C103: 0.856288 | D103: 0.575946 | E103: 0.642369
A104: 362.06 | B104: 0.802564 | C104: 0.845055 | D104: 0.572527 | E104: 0.631624
A105: 364.46 | B105: 0.775702 | C105: 0.837729 | D105: 0.573504 | E105: 0.629182
A106: 366.86 | B106: 0.787912 | C106: 0.869963 | D106: 0.577411 | E106: 0.634554
A107: 370.46 | B107: 0.789866 | C107: 0.854823 | D107: 0.577411 | E107: 0.630647
A108: 372.86 | B108: 0.781563 | C108: 0.839194 | D108: 0.576435 | E108: 0.627717
A109: 375.26 | B109: 0.77326 | C109: 0.834799 | D109: 0.575946 | E109: 0.628205
A110: 378.86 | B110: 0.77326 | C110: 0.833333 | D110: 0.572527 | E110: 0.61746
A111: 381.26 | B111: 0.774237 | C111: 0.825519 | D111: 0.573504 | E111: 0.624786
A112: 383.67 | B112: 0.767399 | C112: 0.844567 | D112: 0.577411 | E112: 0.63602
A113: 386.07 | B113: 0.774237 | C113: 0.848962 | D113: 0.56862 | E113: 0.619902
A114: 388.47 | B114: 0.746398 | C114: 0.814286 | D114: 0.573504 | E114: 0.616972
A115: 392.08 | B115: 0.735653 | C115: 0.805006 | D115: 0.573016 | E115: 0.633089
A116: 394.49 | B116: 0.775702 | C116: 0.824054 | D116: 0.569109 | E116: 0.628205
A117: 396.89 | B117: 0.742002 | C117: 0.816239 | D117: 0.577411 | E117: 0.625275
A118: 399.3 | B118: 0.758608 | C118: 0.81917 | D118: 0.574481 | E118: 0.627228
A119: 401.7 | B119: 0.747863 | C119: 0.814286 | D119: 0.573993 | E119: 0.618926
A120: 405.31 | B120: 0.735653 | C120: 0.804518 | D120: 0.573993 | E120: 0.626252
A121: 407.72 | B121: 0.737118 | C121: 0.803541 | D121: 0.574481 | E121: 0.622833
A122: 410.13 | B122: 0.740537 | C122: 0.774725 | D122: 0.571062 | E122: 0.607692
A123: 412.54 | B123: 0.73663 | C123: 0.795238 | D123: 0.571062 | E123: 0.615507
A124: 416.15 | B124: 0.740537 | C124: 0.810867 | D124: 0.570574 | E124: 0.61746
A125: 417.35 | B125: 0.731746 | C125: 0.783028 | D125: 0.573016 | E125: 0.61746
A126: 420.97 | B126: 0.731746 | C126: 0.769353 | D126: 0.570574 | E126: 0.612576
A127: 423.38 | B127: 0.752259 | C127: 0.757631 | D127: 0.571551 | E127: 0.624786
A128: 425.84 | B128: 0.73956 | C128: 0.776679 | D128: 0.571551 | E128: 0.618926
A129: 428.2 | B129: 0.72442 | C129: 0.771306 | D129: 0.565201 | E129: 0.615995
A130: 430.61 | B130: 0.731746 | C130: 0.778144 | D130: 0.574969 | E130: 0.61453
A131: 434.23 | B131: 0.729792 | C131: 0.775214 | D131: 0.570574 | E131: 0.607204
A132: 436.69 | B132: 0.726862 | C132: 0.778144 | D132: 0.573016 | E132: 0.609646
A133: 439.1 | B133: 0.733211 | C133: 0.765934 | D133: 0.56862 | E133: 0.619902
A134: 441.46 | B134: 0.708303 | C134: 0.778144 | D134: 0.573993 | E134: 0.609646
A135: 445.08 | B135: 0.738584 | C135: 0.757143 | D135: 0.570085 | E135: 0.613065
A136: 447.5 | B136: 0.727839 | C136: 0.772283 | D136: 0.566667 | E136: 0.609646
A137: 449.91 | B137: 0.740049 | C137: 0.738584 | D137: 0.570085 | E137: 0.615507
A138: 452.32 | B138: 0.720024 | C138: 0.744444 | D138: 0.563736 | E138: 0.617949
A139: 454.78 | B139: 0.734676 | C139: 0.766422 | D139: 0.571551 | E139: 0.612088
A140: 458.36 | B140: 0.736142 | C140: 0.752259 | D140: 0.569109 | E140: 0.600366
A141: 460.77 | B141: 0.721001 | C141: 0.749817 | D141: 0.572527 | E141: 0.612576
A142: 464.39 | B142: 0.767888 | C142: 0.787424 | D142: 0.571551 | E142: 0.626252
A143: 466.8 | B143: 0.759096 | C143: 0.811844 | D143: 0.569109 | E143: 0.623321
A144: 469.22 | B144: 0.777656 | C144: 0.807448 | D144: 0.570574 | E144: 0.615507
A145: 471.63 | B145: 0.781563 | C145: 0.778633 | D145: 0.572039 | E145: 0.62381
A146: 474.04 | B146: 0.775214 | C146: 0.790843 | D146: 0.571551 | E146: 0.615995
A147: 476.46 | B147: 0.777656 | C147: 0.781075 | D147: 0.570574 | E147: 0.6116
A148: 480.08 | B148: 0.761538 | C148: 0.764957 | D148: 0.566667 | E148: 0.620879
A149: 482.49 | B149: 0.745421 | C149: 0.765446 | D149: 0.56569 | E149: 0.621856
A150: 484.9 | B150: 0.747863 | C150: 0.756654 | D150: 0.573993 | E150: 0.608181
A151: 487.32 | B151: 0.743468 | C151: 0.771795 | D151: 0.572039 | E151: 0.61746
A152: 489.73 | B152: 0.768864 | C152: 0.73956 | D152: 0.570574 | E152: 0.611111
A153: 493.35 | B153: 0.764957 | C153: 0.764469 | D153: 0.572039 | E153: 0.61746
A154: 495.81 | B154: 0.758608 | C154: 0.777656 | D154: 0.569109 | E154: 0.6116
A155: 498.17 | B155: 0.762027 | C155: 0.783028 | D155: 0.567155 | E155: 0.612576
A156: 500.63 | B156: 0.765934 | C156: 0.755189 | D156: 0.573016 | E156: 0.607204
A157: 502.99 | B157: 0.759585 | C157: 0.744444 | D157: 0.567155 | E157: 0.607692
A158: 506.61 | B158: 0.74591 | C158: 0.774725 | D158: 0.564713 | E158: 0.609158
A159: 509.01 | B159: 0.738095 | C159: 0.754212 | D159: 0.573016 | E159: 0.619902
A160: 511.42 | B160: 0.732234 | C160: 0.747863 | D160: 0.567643 | E160: 0.603785
A161: 515.04 | B161: 0.73663 | C161: 0.76398 | D161: 0.572527 | E161: 0.603785
A162: 517.44 | B162: 0.740537 | C162: 0.760073 | D162: 0.570085 | E162: 0.609158
A163: 519.85 | B163: 0.750305 | C163: 0.736142 | D163: 0.571551 | E163: 0.614042
A164: 522.26 | B164: 0.72442 | C164: 0.755678 | D164: 0.567643 | E164: 0.600366
A165: 525.86 | B165: 0.73956 | C165: 0.734676 | D165: 0.571062 | E165: 0.604762
A166: 528.27 | B166: 0.744444 | C166: 0.752747 | D166: 0.565201 | E166: 0.606227
A167: 530.67 | B167: 0.731746 | C167: 0.737118 | D167: 0.573504 | E167: 0.606716
A168: 533.12 | B168: 0.746886 | C168: 0.764957 | D168: 0.570085 | E168: 0.602808
A169: 535.47 | B169: 0.730281 | C169: 0.752259 | D169: 0.573504 | E169: 0.610623
A170: 539.12 | B170: 0.743468 | C170: 0.754701 | D170: 0.572039 | E170: 0.618926
A171: 541.52 | B171: 0.760562 | C171: 0.77033 | D171: 0.570574 | E171: 0.620879
A172: 543.87 | B172: 0.774237 | C172: 0.757631 | D172: 0.567155 | E172: 0.6116
A173: 546.27 | B173: 0.78254 | C173: 0.730281 | D173: 0.566178 | E173: 0.608181
A174: 548.66 | B174: 0.754212 | C174: 0.764469 | D174: 0.567155 | E174: 0.615995
A175: 552.25 | B175: 0.742979 | C175: 0.738584 | D175: 0.573504 | E175: 0.6116
A176: 554.65 | B176: 0.752747 | C176: 0.755678 | D176: 0.572527 | E176: 0.61746
A177: 557.04 | B177: 0.746886 | C177: 0.755189 | D177: 0.567155 | E177: 0.609646
A178: 559.48 | B178: 0.755189 | C178: 0.745421 | D178: 0.568132 | E178: 0.609646
A179: 561.82 | B179: 0.744444 | C179: 0.746398 | D179: 0.568132 | E179: 0.595482
A180: 564.25 | B180: 0.743956 | C180: 0.746398 | D180: 0.569109 | E180: 0.609158
A181: 567.78 | B181: 0.751282 | C181: 0.745421 | D181: 0.571062 | E181: 0.609646
A182: 570.16 | B182: 0.731746 | C182: 0.723932 | D182: 0.569109 | E182: 0.608181
A183: 572.55 | B183: 0.760073 | C183: 0.752747 | D183: 0.572039 | E183: 0.603785
A184: 574.93 | B184: 0.745421 | C184: 0.749817 | D184: 0.564713 | E184: 0.598901
A185: 577.35 | B185: 0.735165 | C185: 0.742979 | D185: 0.571062 | E185: 0.597924
A186: 580.87 | B186: 0.744933 | C186: 0.764469 | D186: 0.571551 | E186: 0.59939
A187: 583.24 | B187: 0.746398 | C187: 0.756166 | D187: 0.570085 | E187: 0.608669
A188: 585.66 | B188: 0.742002 | C188: 0.745421 | D188: 0.571062 | E188: 0.605739
A189: 587.98 | B189: 0.732723 | C189: 0.736142 | D189: 0.567643 | E189: 0.603785
A190: 591.58 | B190: 0.737607 | C190: 0.757631 | D190: 0.571062 | E190: 0.604274
A191: 593.95 | B191: 0.716606 | C191: 0.732723 | D191: 0.56862 | E191: 0.6116
A192: 596.26 | B192: 0.734188 | C192: 0.73956 | D192: 0.565201 | E192: 0.608669
A193: 598.62 | B193: 0.749817 | C193: 0.747863 | D193: 0.570085 | E193: 0.603785
A194: 601.03 | B194: 0.742002 | C194: 0.73663 | D194: 0.573016 | E194: 0.612088
A195: 604.56 | B195: 0.735165 | C195: 0.7337 | D195: 0.567643 | E195: 0.598901
A196: 606.92 | B196: 0.742491 | C196: 0.725397 | D196: 0.563248 | E196: 0.602808
A197: 609.22 | B197: 0.7337 | C197: 0.73663 | D197: 0.566667 | E197: 0.6116
A198: 611.56 | B198: 0.743468 | C198: 0.726374 | D198: 0.566178 | E198: 0.600366
A199: 613.96 | B199: 0.728816 | C199: 0.728327 | D199: 0.569597 | E199: 0.603297
A200: 617.47 | B200: 0.751282 | C200: 0.729304 | D200: 0.566667 | E200: 0.607692
A201: 620.98 | B201: 0.735653 | C201: 0.721001 | D201: 0.570085 | E201: 0.602808
A202: 624.43 | B202: 0.738584 | C202: 0.725885 | D202: 0.570085 | E202: 0.601832
... 28 more rows

Sheet Deconvolution
G1: Sensitivity Factors (x1e6 V/Torr)
H3: 27amu | I3: 29amu | J3: 31amu | K3: 43amu
G4: C2H4 | H4: 5.6 | I4: 0.2 | J4: 0 | K4: 0
G5: CH3CHO | H5: 0.224 | I5: 4.69 | J5: 0 | K5: 1.26
G6: CH3CH2OH | H6: 0.78 | I6: 1.09 | J6: 2.69 | K6: 0.377
G7: ICH2CH2OH | H7: 0.375 | I7: 0.5 | J7: 0.067 | K7: 0.422
G9: Inverse Matrix
H11: =TRANSPOSE(G4:G7) -> C2H4 | I11: CH3CHO | J11: CH3CH2OH | K11: ICH2CH2OH
G12: =TRANSPOSE(H3:K3) -> 27amu | H12: =MINVERSE(H4:K7) -> 0.176894095 | I12: -0.0108990726 | J12: -0.0008289776556 | K12: 0.03328283423
G13: 29amu | H13: 0.04696534002 | I13: 0.3051740327 | J13: 0.02321137436 | K13: -0.9319193585
G14: 31amu | H14: -0.04141574773 | I14: -0.07279974344 | J14: 0.3746701303 | K14: -0.1173529914
G15: 43amu | H15: -0.2062632714 | I15: -0.3403371595 | J15: -0.08625051963 | K15: 3.462893997
A26: 1. Background substraction | G26: 2. Deconvolution
B28: Ethylene | C28: Acetaldehyde | D28: Ethanol | E28: Molec
B29: -0.7 | C29: -0.69 | D29: -0.57 | E29: -0.59
A30: T/K | B30: 27 amu | C30: 29 amu | D30: 31 amu | E30: 43 amu | G30: T/K | H30: =H11 -> C2H4 | I30: =I11 -> CH3CHO | J30: =J11 -> CH3CH2OH | K30: =K11 -> ICH2CH2OH
A31: ='Raw TPD'!A6 -> 90.32 | B31: ='Raw TPD'!B6+B$29 -> -0.011722 | C31: ='Raw TPD'!C6+C$29 -> -0.026142 | D31: ='Raw TPD'!D6+D$29 -> -0.003822 | E31: ='Raw TPD'!E6+E$29 -> -0.015519 | G31: =A31 -> 90.32 | H31: =MMULT(B31:E31,$H$12:$K$15) -> 5.79701965e-05 | I31: -0.002290167636 | J31: -0.000690541896 | K31: -0.02932003432
A32: ='Raw TPD'!A7 -> 92.91 | B32: ='Raw TPD'!B7+B$29 -> 0.016606 | C32: ='Raw TPD'!C7+C$29 -> -0.028584 | D32: ='Raw TPD'!D7+D$29 -> -0.003333 | E32: ='Raw TPD'!E7+E$29 -> -0.008193 | G32: 92.91 | H32: =MMULT(B32:E32,$H$12:$K$15) -> 0.003422999732 | I32: -0.005873060657 | J32: -0.001219364964 | K32: -0.0007896753102
A33: ='Raw TPD'!A8 -> 92.91 | B33: ='Raw TPD'!B8+B$29 -> 0.057631 | C33: ='Raw TPD'!C8+C$29 -> -0.010024 | D33: ='Raw TPD'!D8+D$29 -> -0.005287 | E33: ='Raw TPD'!E8+E$29 -> -0.011123 | G33: 92.91 | H33: =MMULT(B33:E33,$H$12:$K$15) -> 0.01223703445 | I33: 0.0004832735123 | J33: -0.001301962077 | K33: -0.026637642
A34: ='Raw TPD'!A9 -> 95.46 | B34: ='Raw TPD'!B9+B$29 -> 0.121612 | C34: ='Raw TPD'!C9+C$29 -> -0.00221 | D34: ='Raw TPD'!D9+D$29 -> -0.003822 | E34: ='Raw TPD'!E9+E$29 -> -0.002332 | G34: 95.46 | H34: =MMULT(B34:E34,$H$12:$K$15) -> 0.02204794822 | I34: -0.0009279857533 | J34: -0.001382963794 | K34: -0.001519811849
A35: ='Raw TPD'!A10 -> 97.97 | B35: ='Raw TPD'!B10+B$29 -> 0.213431 | C35: ='Raw TPD'!C10+C$29 -> -0.006117 | D35: ='Raw TPD'!D10+D$29 -> 0.000574 | E35: ='Raw TPD'!E10+E$29 -> -0.008681 | G35: 97.97 | H35: =MMULT(B35:E35,$H$12:$K$15) -> 0.03923419542 | I35: -0.001280269692 | J35: 0.0006448879088 | K35: -0.0173246041
A36: ='Raw TPD'!A11 -> 100.44 | B36: ='Raw TPD'!B11+B$29 -> 0.216361 | C36: ='Raw TPD'!C11+C$29 -> -0.008071 | D36: ='Raw TPD'!D11+D$29 -> -0.005287 | E36: ='Raw TPD'!E11+E$29 -> -0.010147 | G36: 100.44 | H36: =MMULT(B36:E36,$H$12:$K$15) -> 0.0402058445 | I36: -0.0009829004626 | J36: -0.001472394393 | K36: -0.01979491168
A37: ='Raw TPD'!A12 -> 102.87 | B37: ='Raw TPD'!B12+B$29 -> 0.190965 | C37: ='Raw TPD'!C12+C$29 -> 0.017326 | D37: ='Raw TPD'!D12+D$29 -> -0.005775 | E37: ='Raw TPD'!E12+E$29 -> -0.006728 | G37: 102.87 | H37: =MMULT(B37:E37,$H$12:$K$15) -> 0.03622121757 | I37: 0.005916310819 | J37: -0.001339571952 | K37: -0.03241121565
A38: ='Raw TPD'!A13 -> 105.26 | B38: ='Raw TPD'!B13+B$29 -> 0.129915 | C38: ='Raw TPD'!C13+C$29 -> 0.015861 | D38: ='Raw TPD'!D13+D$29 -> -0.005775 | E38: ='Raw TPD'!E13+E$29 -> -0.002332 | G38: 105.26 | H38: =MMULT(B38:E38,$H$12:$K$15) -> 0.0244462955 | I38: 0.00463849709 | J38: -0.001702124814 | K38: -0.01785498881
A39: ='Raw TPD'!A14 -> 109.94 | B39: ='Raw TPD'!B14+B$29 -> 0.092796 | C39: ='Raw TPD'!C14+C$29 -> 0.003162 | D39: ='Raw TPD'!D14+D$29 -> -0.003822 | E39: ='Raw TPD'!E14+E$29 -> -0.008193 | G39: 109.94 | H39: =MMULT(B39:E39,$H$12:$K$15) -> 0.01841177482 | I39: 0.003020192918 | J39: -0.0007288701753 | K39: -0.02778118251
A40: ='Raw TPD'!A15 -> 114.48 | B40: ='Raw TPD'!B15+B$29 -> 0.076191 | C40: ='Raw TPD'!C15+C$29 -> 0.009023 | D40: ='Raw TPD'!D15+D$29 -> -0.003822 | E40: ='Raw TPD'!E15+E$29 -> 0.000598 | G40: 114.48 | H40: =MMULT(B40:E40,$H$12:$K$15) -> 0.01393645181 | I40: 0.001997893055 | J40: -0.001337291454 | K40: -0.003353522205
A41: ='Raw TPD'!A16 -> 118.9 | B41: ='Raw TPD'!B16+B$29 -> 0.07326 | C41: ='Raw TPD'!C16+C$29 -> 0.00072 | D41: ='Raw TPD'!D16+D$29 -> -0.004799 | E41: ='Raw TPD'!E16+E$29 -> -0.001844 | G41: 118.9 | H41: =MMULT(B41:E41,$H$12:$K$15) -> 0.01357218009 | I41: 0.000398206936 | J41: -0.00168301471 | K41: -0.004055081027
A42: ='Raw TPD'!A17 -> 123.19 | B42: ='Raw TPD'!B17+B$29 -> 0.060562 | C42: ='Raw TPD'!C17+C$29 -> 0.01 | D42: ='Raw TPD'!D17+D$29 -> -0.002357 | E42: ='Raw TPD'!E17+E$29 -> 0.003529 | G42: 123.19 | H42: =MMULT(B42:E42,$H$12:$K$15) -> 0.01055242741 | I42: 0.001362209852 | J42: -0.001005566382 | K42: 0.005193635339
A43: ='Raw TPD'!A18 -> 125.29 | B43: ='Raw TPD'!B18+B$29 -> 0.082051 | C43: ='Raw TPD'!C18+C$29 -> 0.055421 | D43: ='Raw TPD'!D18+D$29 -> -0.005775 | E43: ='Raw TPD'!E18+E$29 -> 0.022576 | G43: 125.29 | H43: =MMULT(B43:E43,$H$12:$K$15) -> 0.01269977983 | I43: 0.008755737065 | J43: -0.002892532601 | K43: 0.02993899547
A44: ='Raw TPD'!A19 -> 131.42 | B44: ='Raw TPD'!B19+B$29 -> 0.053724 | C44: ='Raw TPD'!C19+C$29 -> 0.059817 | D44: ='Raw TPD'!D19+D$29 -> -0.005775 | E44: ='Raw TPD'!E19+E$29 -> 0.02453 | G44: 131.42 | H44: =MMULT(B44:E44,$H$12:$K$15) -> 0.007492321999 | I44: 0.009741001332 | J44: -0.002935546465 | K44: 0.03166597
A45: ='Raw TPD'!A20 -> 135.38 | B45: ='Raw TPD'!B20+B$29 -> 0.066422 | C45: ='Raw TPD'!C20+C$29 -> 0.057863 | D45: ='Raw TPD'!D20+D$29 -> -0.005775 | E45: ='Raw TPD'!E20+E$29 -> 0.006948 | G45: 135.38 | H45: =MMULT(B45:E45,$H$12:$K$15) -> 0.01327327378 | I45: 0.01499010279 | J45: -0.001474971212 | K45: -0.02697503641
A46: ='Raw TPD'!A21 -> 139.24 | B46: ='Raw TPD'!B21+B$29 -> 0.07326 | C46: ='Raw TPD'!C21+C$29 -> 0.027582 | D46: ='Raw TPD'!D21+D$29 -> -0.007729 | E46: ='Raw TPD'!E21+E$29 -> 0.009878 | G46: 139.24 | H46: =MMULT(B46:E46,$H$12:$K$15) -> 0.01253729313 | I46: 0.004819662866 | J46: -0.003168322845 | K46: 0.01184758886
A47: ='Raw TPD'!A22 -> 141.13 | B47: ='Raw TPD'!B22+B$29 -> 0.076679 | C47: ='Raw TPD'!C22+C$29 -> 0.019768 | D47: ='Raw TPD'!D22+D$29 -> -0.003822 | E47: ='Raw TPD'!E22+E$29 -> 0.002552 | G47: 141.13 | H47: =MMULT(B47:E47,$H$12:$K$15) -> 0.01412438027 | I47: 0.004606650479 | J47: -0.001256823293 | K47: -0.006584258819
A48: ='Raw TPD'!A23 -> 144.86 | B48: ='Raw TPD'!B23+B$29 -> 0.071306 | C48: ='Raw TPD'!C23+C$29 -> 0.009023 | D48: ='Raw TPD'!D23+D$29 -> -0.00431 | E48: ='Raw TPD'!E23+E$29 -> 0.011343 | G48: 144.86 | H48: =MMULT(B48:E48,$H$12:$K$15) -> 0.01087623619 | I48: -0.001570261479 | J48: -0.002442842756 | K48: 0.03374995541
A49: ='Raw TPD'!A24 -> 148.5 | B49: ='Raw TPD'!B24+B$29 -> 0.133333 | C49: ='Raw TPD'!C24+C$29 -> 0.03149 | D49: ='Raw TPD'!D24+D$29 -> -0.006264 | E49: ='Raw TPD'!E24+E$29 -> 0.011343 | G49: 148.5 | H49: =MMULT(B49:E49,$H$12:$K$15) -> 0.02298454288 | I49: 0.004752297435 | J49: -0.002704877239 | K49: 0.01510626529
A50: ='Raw TPD'!A25 -> 152.06 | B50: ='Raw TPD'!B25+B$29 -> 0.159707 | C50: ='Raw TPD'!C25+C$29 -> 0.052002 | D50: ='Raw TPD'!D25+D$29 -> -0.000403 | E50: ='Raw TPD'!E25+E$29 -> 0.035763 | G50: 152.06 | H50: =MMULT(B50:E50,$H$12:$K$15) -> 0.02333361401 | I50: 0.001986862322 | J50: -0.002160925041 | K50: 0.0807446024
A51: ='Raw TPD'!A26 -> 153.82 | B51: ='Raw TPD'!B26+B$29 -> 0.159707 | C51: ='Raw TPD'!C26+C$29 -> 0.076422 | D51: ='Raw TPD'!D26+D$29 -> 0.003993 | E51: ='Raw TPD'!E26+E$29 -> 0.023065 | G51: 153.82 | H51: =MMULT(B51:E51,$H$12:$K$15) -> 0.02691757501 | I51: 0.01344078578 | J51: 0.001148155711 | K51: 0.01349941994
A52: ='Raw TPD'!A27 -> 157.27 | B52: ='Raw TPD'!B27+B$29 -> 0.177778 | C52: ='Raw TPD'!C27+C$29 -> 0.051514 | D52: ='Raw TPD'!D27+D$29 -> -0.001868 | E52: ='Raw TPD'!E27+E$29 -> 0.016716 | G52: 157.27 | H52: =MMULT(B52:E52,$H$12:$K$15) -> 0.03049671872 | I52: 0.008230033754 | J52: -0.001093310741 | K52: 0.01601501332
A53: ='Raw TPD'!A28 -> 158.98 | B53: ='Raw TPD'!B28+B$29 -> 0.196825 | C53: ='Raw TPD'!C28+C$29 -> 0.06177 | D53: ='Raw TPD'!D28+D$29 -> 0.003993 | E53: ='Raw TPD'!E28+E$29 -> 0.02453 | G53: 158.98 | H53: =MMULT(B53:E53,$H$12:$K$15) -> 0.03249321817 | I53: 0.008066230137 | J53: 0.0006509356505 | K53: 0.03346243433
A54: ='Raw TPD'!A29 -> 160.67 | B54: ='Raw TPD'!B29+B$29 -> 0.206593 | C54: ='Raw TPD'!C29+C$29 -> 0.072515 | D54: ='Raw TPD'!D29+D$29 -> 0.005946 | E54: ='Raw TPD'!E29+E$29 -> 0.022088 | G54: 160.67 | H54: =MMULT(B54:E54,$H$12:$K$15) -> 0.03514857222 | I54: 0.01192778842 | J54: 0.001834598948 | K54: 0.01508849001
A55: ='Raw TPD'!A30 -> 164 | B55: ='Raw TPD'!B30+B$29 -> 0.246154 | C55: ='Raw TPD'!C30+C$29 -> 0.046142 | D55: ='Raw TPD'!D30+D$29 -> 0.023529 | E55: ='Raw TPD'!E30+E$29 -> 0.014762 | G55: 164 | H55: =MMULT(B55:E55,$H$12:$K$15) -> 0.04169093424 | I55: 0.004661527588 | J55: 0.008409346394 | K55: 0.01355012239
A56: ='Raw TPD'!A31 -> 165.64 | B56: ='Raw TPD'!B31+B$29 -> 0.248596 | C56: ='Raw TPD'!C31+C$29 -> 0.075446 | D56: ='Raw TPD'!D31+D$29 -> 0.025971 | E56: ='Raw TPD'!E31+E$29 -> 0.016716 | G56: 165.64 | H56: =MMULT(B56:E56,$H$12:$K$15) -> 0.04299500625 | I56: 0.01273493612 | J56: 0.009833919087 | K56: -0.007197646945
A57: ='Raw TPD'!A32 -> 167.27 | B57: ='Raw TPD'!B32+B$29 -> 0.340904 | C57: ='Raw TPD'!C32+C$29 -> 0.075446 | D57: ='Raw TPD'!D32+D$29 -> 0.030366 | E57: ='Raw TPD'!E32+E$29 -> 0.021111 | G57: 167.27 | H57: =MMULT(B57:E57,$H$12:$K$15) -> 0.05823519709 | I57: 0.009913127841 | J57: 0.01102500201 | K57: 0.01057827764
A58: ='Raw TPD'!A33 -> 168.88 | B58: ='Raw TPD'!B33+B$29 -> 0.344322 | C58: ='Raw TPD'!C33+C$29 -> 0.073004 | D58: ='Raw TPD'!D33+D$29 -> 0.032808 | E58: ='Raw TPD'!E33+E$29 -> 0.012808 | G58: 168.88 | H58: =MMULT(B58:E58,$H$12:$K$15) -> 0.06033659843 | I58: 0.01177868229 | J58: 0.01259656891 | K58: -0.01607119943
A59: ='Raw TPD'!A34 -> 172.08 | B59: ='Raw TPD'!B34+B$29 -> 0.40928 | C59: ='Raw TPD'!C34+C$29 -> 0.078864 | D59: ='Raw TPD'!D34+D$29 -> 0.039646 | E59: ='Raw TPD'!E34+E$29 -> 0.026972 | G59: 172.08 | H59: =MMULT(B59:E59,$H$12:$K$15) -> 0.06889778809 | I59: 0.007540679986 | J59: 0.01401908082 | K59: 0.0288757103
A60: ='Raw TPD'!A35 -> 173.66 | B60: ='Raw TPD'!B35+B$29 -> 0.443468 | C60: ='Raw TPD'!C35+C$29 -> 0.094005 | D60: ='Raw TPD'!D35+D$29 -> 0.045507 | E60: ='Raw TPD'!E35+E$29 -> 0.02746 | G60: 173.66 | H60: =MMULT(B60:E60,$H$12:$K$15) -> 0.07531315144 | I60: 0.01119593869 | J60: 0.01649603453 | K60: 0.01690547922
A61: ='Raw TPD'!A36 -> 176.79 | B61: ='Raw TPD'!B36+B$29 -> 0.501587 | C61: ='Raw TPD'!C36+C$29 -> 0.090098 | D61: ='Raw TPD'!D36+D$29 -> 0.034274 | E61: ='Raw TPD'!E36+E$29 -> 0.02746 | G61: 176.79 | H61: =MMULT(B61:E61,$H$12:$K$15) -> 0.08587578886 | I61: 0.01018794006 | J61: 0.01214849877 | K61: 0.02379907935
A62: ='Raw TPD'!A37 -> 178.34 | B62: ='Raw TPD'!B37+B$29 -> 0.576313 | C62: ='Raw TPD'!C37+C$29 -> 0.101331 | D62: ='Raw TPD'!D37+D$29 -> 0.035739 | E62: ='Raw TPD'!E37+E$29 -> 0.032344 | G62: 178.34 | H62: =MMULT(B62:E62,$H$12:$K$15) -> 0.09855387478 | I62: 0.01103265756 | J62: 0.01247493015 | K62: 0.03255877442
A63: ='Raw TPD'!A38 -> 179.88 | B63: ='Raw TPD'!B38+B$29 -> 0.596825 | C63: ='Raw TPD'!C38+C$29 -> 0.113541 | D63: ='Raw TPD'!D38+D$29 -> 0.039646 | E63: ='Raw TPD'!E38+E$29 -> 0.021111 | G63: 179.88 | H63: =MMULT(B63:E63,$H$12:$K$15) -> 0.1049109173 | I63: 0.01807384944 | J63: 0.01517402533 | K63: -0.01749444987
A64: ='Raw TPD'!A39 -> 182.93 | B64: ='Raw TPD'!B39+B$29 -> 0.697436 | C64: ='Raw TPD'!C39+C$29 -> 0.127705 | D64: ='Raw TPD'!D39+D$29 -> 0.051368 | E64: ='Raw TPD'!E39+E$29 -> 0.031368 | G64: 182.93 | H64: =MMULT(B64:E64,$H$12:$K$15) -> 0.1207725084 | I64: 0.01695557101 | J64: 0.01892659865 | K64: 0.00679775554
A65: ='Raw TPD'!A40 -> 185.94 | B65: ='Raw TPD'!B40+B$29 -> 0.651526 | C65: ='Raw TPD'!C40+C$29 -> 0.148217 | D65: ='Raw TPD'!D40+D$29 -> 0.068462 | E65: ='Raw TPD'!E40+E$29 -> 0.037717 | G65: 185.94 | H65: =MMULT(B65:E65,$H$12:$K$15) -> 0.1115971272 | I65: 0.02031043775 | J65: 0.02529777539 | K65: 0.006134092693
A66: ='Raw TPD'!A41 -> 188.93 | B66: ='Raw TPD'!B41+B$29 -> 0.685226 | C66: ='Raw TPD'!C41+C$29 -> 0.124774 | D66: ='Raw TPD'!D41+D$29 -> 0.064066 | E66: ='Raw TPD'!E41+E$29 -> 0.045043 | G66: 188.93 | H66: =MMULT(B66:E66,$H$12:$K$15) -> 0.1151284286 | I66: 0.0106156618 | J66: 0.02244677339 | K66: 0.0549877549
A67: ='Raw TPD'!A42 -> 191.88 | B67: ='Raw TPD'!B42+B$29 -> 0.712088 | C67: ='Raw TPD'!C42+C$29 -> 0.142357 | D67: ='Raw TPD'!D42+D$29 -> 0.064066 | E67: ='Raw TPD'!E42+E$29 -> 0.046508 | G67: 191.88 | H67: =MMULT(B67:E67,$H$12:$K$15) -> 0.1204037737 | I67: 0.01519017199 | J67: 0.02270627398 | K67: 0.04456900002
A68: ='Raw TPD'!A43 -> 194.81 | B68: ='Raw TPD'!B43+B$29 -> 0.625153 | C68: ='Raw TPD'!C43+C$29 -> 0.160916 | D68: ='Raw TPD'!D43+D$29 -> 0.084579 | E68: ='Raw TPD'!E43+E$29 -> 0.047973 | G68: 194.81 | H68: =MMULT(B68:E68,$H$12:$K$15) -> 0.1047453784 | I68: 0.01980947266 | J68: 0.03076837242 | K68: 0.02704594324
A69: ='Raw TPD'!A44 -> 197.72 | B69: ='Raw TPD'!B44+B$29 -> 0.536264 | C69: ='Raw TPD'!C44+C$29 -> 0.146752 | D69: ='Raw TPD'!D44+D$29 -> 0.0963 | E69: ='Raw TPD'!E44+E$29 -> 0.057253 | G69: 197.72 | H69: =MMULT(B69:E69,$H$12:$K$15) -> 0.08595666495 | I69: 0.01244418069 | J69: 0.03410439728 | K69: 0.06804733307
A70: ='Raw TPD'!A45 -> 200.6 | B70: ='Raw TPD'!B45+B$29 -> 0.514774 | C70: ='Raw TPD'!C45+C$29 -> 0.194615 | D70: ='Raw TPD'!D45+D$29 -> 0.100208 | E70: ='Raw TPD'!E45+E$29 -> 0.074347 | G70: 200.6 | H70: =MMULT(B70:E70,$H$12:$K$15) -> 0.08071539582 | I70: 0.02118272168 | J70: 0.03522302251 | K70: 0.0814637232
A71: ='Raw TPD'!A46 -> 204.89 | B71: ='Raw TPD'!B46+B$29 -> 0.46105 | C71: ='Raw TPD'!C46+C$29 -> 0.20536 | D71: ='Raw TPD'!D46+D$29 -> 0.116813 | E71: ='Raw TPD'!E46+E$29 -> 0.095348 | G71: 204.89 | H71: =MMULT(B71:E71,$H$12:$K$15) -> 0.06669713658 | I71: 0.01669109802 | J71: 0.03992701507 | K71: 0.1404377531
A72: ='Raw TPD'!A47 -> 207.73 | B72: ='Raw TPD'!B47+B$29 -> 0.469353 | C72: ='Raw TPD'!C47+C$29 -> 0.20536 | D72: ='Raw TPD'!D47+D$29 -> 0.132442 | E72: ='Raw TPD'!E47+E$29 -> 0.105116 | G72: 207.73 | H72: =MMULT(B72:E72,$H$12:$K$15) -> 0.0655038219 | I72: 0.01213840245 | J72: 0.04493335646 | K72: 0.1727055392
A73: ='Raw TPD'!A48 -> 210.55 | B73: ='Raw TPD'!B48+B$29 -> 0.525519 | C73: ='Raw TPD'!C48+C$29 -> 0.246874 | D73: ='Raw TPD'!D48+D$29 -> 0.136838 | E73: ='Raw TPD'!E48+E$29 -> 0.127582 | G73: 210.55 | H73: =MMULT(B73:E73,$H$12:$K$15) -> 0.07257300048 | I73: 0.01622919764 | J73: 0.04555973881 | K73: 0.2131686954
A74: ='Raw TPD'!A49 -> 213.36 | B74: ='Raw TPD'!B49+B$29 -> 0.505495 | C74: ='Raw TPD'!C49+C$29 -> 0.227338 | D74: ='Raw TPD'!D49+D$29 -> 0.134884 | E74: ='Raw TPD'!E49+E$29 -> 0.111954 | G74: 213.36 | H74: =MMULT(B74:E74,$H$12:$K$15) -> 0.07141776702 | I74: 0.01594660059 | J74: 0.04573869854 | K74: 0.1768194168
A75: ='Raw TPD'!A50 -> 217.55 | B75: ='Raw TPD'!B50+B$29 -> 0.409768 | C75: ='Raw TPD'!C50+C$29 -> 0.190708 | D75: ='Raw TPD'!D50+D$29 -> 0.095324 | E75: ='Raw TPD'!E50+E$29 -> 0.091929 | G75: 217.55 | H75: =MMULT(B75:E75,$H$12:$K$15) -> 0.05853271457 | I75: 0.01550662077 | J75: 0.03187303774 | K75: 0.1430675891
A76: ='Raw TPD'!A51 -> 220.32 | B76: ='Raw TPD'!B51+B$29 -> 0.331624 | C76: ='Raw TPD'!C51+C$29 -> 0.162381 | D76: ='Raw TPD'!D51+D$29 -> 0.074322 | E76: ='Raw TPD'!E51+E$29 -> 0.083626 | G76: 220.32 | H76: =MMULT(B76:E76,$H$12:$K$15) -> 0.0459615327 | I76: 0.01206841272 | J76: 0.02412762476 | K76: 0.1405774537
A77: ='Raw TPD'!A52 -> 223.14 | B77: ='Raw TPD'!B52+B$29 -> 0.289133 | C77: ='Raw TPD'!C52+C$29 -> 0.184847 | D77: ='Raw TPD'!D52+D$29 -> 0.058205 | E77: ='Raw TPD'!E52+E$29 -> 0.086068 | G77: 223.14 | H77: =MMULT(B77:E77,$H$12:$K$15) -> 0.03966405174 | I77: 0.01972977515 | J77: 0.01843513333 | K77: 0.1285744977
A78: ='Raw TPD'!A53 -> 225.84 | B78: ='Raw TPD'!B53+B$29 -> 0.252991 | C78: ='Raw TPD'!C53+C$29 -> 0.195104 | D78: ='Raw TPD'!D53+D$29 -> 0.054298 | E78: ='Raw TPD'!E53+E$29 -> 0.055788 | G78: 225.84 | H78: =MMULT(B78:E78,$H$12:$K$15) -> 0.04015993203 | I78: 0.03384369727 | J78: 0.01985100284 | K78: 0.01341496058
A79: ='Raw TPD'!A54 -> 228.58 | B79: ='Raw TPD'!B54+B$29 -> 0.205128 | C79: ='Raw TPD'!C54+C$29 -> 0.172149 | D79: ='Raw TPD'!D54+D$29 -> 0.046484 | E79: ='Raw TPD'!E54+E$29 -> 0.065067 | G79: 228.58 | H79: =MMULT(B79:E79,$H$12:$K$15) -> 0.02902486634 | I79: 0.02477095836 | J79: 0.01562987213 | K79: 0.06626334284
A80: ='Raw TPD'!A55 -> 231.31 | B80: ='Raw TPD'!B55+B$29 -> 0.199267 | C80: ='Raw TPD'!C55+C$29 -> 0.146264 | D80: ='Raw TPD'!D55+D$29 -> 0.04746 | E80: ='Raw TPD'!E55+E$29 -> 0.053834 | G80: =A80 -> 231.31 | H80: =MMULT(B80:E80,$H$12:$K$15) -> 0.02904892578 | I80: 0.02068736275 | J80: 0.01636843448 | K80: 0.05117777995
A81: ='Raw TPD'!A56 -> 234.03 | B81: ='Raw TPD'!B56+B$29 -> 0.161172 | C81: ='Raw TPD'!C56+C$29 -> 0.138938 | D81: ='Raw TPD'!D56+D$29 -> 0.033297 | E81: ='Raw TPD'!E56+E$29 -> 0.067509 | G81: 234.03 | H81: =MMULT(B81:E81,$H$12:$K$15) -> 0.01973199815 | I81: 0.01524381007 | J81: 0.009744038941 | K81: 0.1057542574
A82: ='Raw TPD'!A57 -> 236.74 | B82: ='Raw TPD'!B57+B$29 -> 0.169475 | C82: ='Raw TPD'!C57+C$29 -> 0.143822 | D82: ='Raw TPD'!D57+D$29 -> 0.037692 | E82: ='Raw TPD'!E57+E$29 -> 0.047973 | G82: 236.74 | H82: =MMULT(B82:E82,$H$12:$K$15) -> 0.0252776656 | I82: 0.02297265692 | J82: 0.01318218567 | K82: 0.03331224713
A83: ='Raw TPD'!A58 -> 238.08 | B83: ='Raw TPD'!B58+B$29 -> 0.120147 | C83: ='Raw TPD'!C58+C$29 -> 0.150171 | D83: ='Raw TPD'!D58+D$29 -> 0.036716 | E83: ='Raw TPD'!E58+E$29 -> 0.059206 | G83: 238.08 | H83: =MMULT(B83:E83,$H$12:$K$15) -> 0.01457348307 | I83: 0.02169588154 | J83: 0.01203591636 | K83: 0.06476694027
A84: ='Raw TPD'!A59 -> 240.77 | B84: ='Raw TPD'!B59+B$29 -> 0.127961 | C84: ='Raw TPD'!C59+C$29 -> 0.122821 | D84: ='Raw TPD'!D59+D$29 -> 0.038669 | E84: ='Raw TPD'!E59+E$29 -> 0.046508 | G84: 240.77 | H84: =MMULT(B84:E84,$H$12:$K$15) -> 0.01720947754 | I84: 0.01744362975 | J84: 0.0132215475 | K84: 0.04631398842
A85: ='Raw TPD'!A60 -> 243.44 | B85: ='Raw TPD'!B60+B$29 -> 0.100122 | C85: ='Raw TPD'!C60+C$29 -> 0.157985 | D85: ='Raw TPD'!D60+D$29 -> 0.027924 | E85: ='Raw TPD'!E60+E$29 -> 0.03674 | G85: 243.44 | H85: =MMULT(B85:E85,$H$12:$K$15) -> 0.01639620389 | I85: 0.03258483533 | J85: 0.0108774947 | K85: -0.0199471754
A86: ='Raw TPD'!A61 -> 246.09 | B86: ='Raw TPD'!B61+B$29 -> 0.125031 | C86: ='Raw TPD'!C61+C$29 -> 0.128193 | D86: ='Raw TPD'!D61+D$29 -> 0.027436 | E86: ='Raw TPD'!E61+E$29 -> 0.041136 | G86: 246.09 | H86: =MMULT(B86:E86,$H$12:$K$15) -> 0.01851674504 | I86: 0.02176100967 | J86: 0.009603336126 | K86: 0.02392575852
A87: ='Raw TPD'!A62 -> 247.42 | B87: ='Raw TPD'!B62+B$29 -> 0.117705 | C87: ='Raw TPD'!C62+C$29 -> 0.140403 | D87: ='Raw TPD'!D62+D$29 -> 0.020598 | E87: ='Raw TPD'!E62+E$29 -> 0.04895 | G87: 247.42 | H87: =MMULT(B87:E87,$H$12:$K$15) -> 0.01646572538 | I87: 0.0234054413 | J87: 0.006656864186 | K87: 0.04016470656
A88: ='Raw TPD'!A63 -> 250.04 | B88: ='Raw TPD'!B63+B$29 -> 0.138706 | C88: ='Raw TPD'!C63+C$29 -> 0.111099 | D88: ='Raw TPD'!D63+D$29 -> 0.024017 | E88: ='Raw TPD'!E63+E$29 -> 0.05188 | G88: 250.04 | H88: =MMULT(B88:E88,$H$12:$K$15) -> 0.01805845412 | I88: 0.01298763982 | J88: 0.006987551865 | K88: 0.07791769378
A89: ='Raw TPD'!A64 -> 252.65 | B89: ='Raw TPD'!B64+B$29 -> 0.10989 | C89: ='Raw TPD'!C64+C$29 -> 0.138449 | D89: ='Raw TPD'!D64+D$29 -> 0.024017 | E89: ='Raw TPD'!E64+E$29 -> 0.045531 | G89: 252.65 | H89: =MMULT(B89:E89,$H$12:$K$15) -> 0.01555514144 | I89: 0.02380901791 | J89: 0.008193875323 | K89: 0.02948470718
A90: ='Raw TPD'!A65 -> 255.24 | B90: ='Raw TPD'!B65+B$29 -> 0.091819 | C90: ='Raw TPD'!C65+C$29 -> 0.12917 | D90: ='Raw TPD'!D65+D$29 -> 0.023529 | E90: ='Raw TPD'!E65+E$29 -> 0.049438 | G90: 255.24 | H90: =MMULT(B90:E90,$H$12:$K$15) -> 0.01113703714 | I90: 0.0198800942 | J90: 0.007473657632 | K90: 0.05111732792
A91: ='Raw TPD'!A66 -> 257.8 | B91: ='Raw TPD'!B66+B$29 -> 0.114774 | C91: ='Raw TPD'!C66+C$29 -> 0.152125 | D91: ='Raw TPD'!D66+D$29 -> 0.024505 | E91: ='Raw TPD'!E66+E$29 -> 0.050415 | G91: 257.8 | H91: =MMULT(B91:E91,$H$12:$K$15) -> 0.01603378948 | I91: 0.02623161395 | J91: 0.008268856837 | K91: 0.03375783742
A92: ='Raw TPD'!A67 -> 260.33 | B92: ='Raw TPD'!B67+B$29 -> 0.083517 | C92: ='Raw TPD'!C67+C$29 -> 0.161893 | D92: ='Raw TPD'!D67+D$29 -> 0.019133 | E92: ='Raw TPD'!E67+E$29 -> 0.048462 | G92: 260.33 | H92: =MMULT(B92:E92,$H$12:$K$15) -> 0.01158868576 | I92: 0.03060898491 | J92: 0.006677216222 | K92: 0.01748191587
A93: ='Raw TPD'!A68 -> 262.84 | B93: ='Raw TPD'!B68+B$29 -> 0.092796 | C93: ='Raw TPD'!C68+C$29 -> 0.147729 | D93: ='Raw TPD'!D68+D$29 -> 0.012784 | E93: ='Raw TPD'!E68+E$29 -> 0.057741 | G93: 262.84 | H93: =MMULT(B93:E93,$H$12:$K$15) -> 0.01091390068 | I93: 0.02348958449 | J93: 0.003161659003 | K93: 0.06386772063
A94: ='Raw TPD'!A69 -> 265.31 | B94: ='Raw TPD'!B69+B$29 -> 0.081563 | C94: ='Raw TPD'!C69+C$29 -> 0.147241 | D94: ='Raw TPD'!D69+D$29 -> 0.016203 | E94: ='Raw TPD'!E69+E$29 -> 0.048462 | G94: 265.31 | H94: =MMULT(B94:E94,$H$12:$K$15) -> 0.01067624668 | I94: 0.02637217502 | J94: 0.005240959505 | K94: 0.03141520792
A95: ='Raw TPD'!A70 -> 269 | B95: ='Raw TPD'!B70+B$29 -> 0.104029 | C95: ='Raw TPD'!C70+C$29 -> 0.130635 | D95: ='Raw TPD'!D70+D$29 -> 0.017668 | E95: ='Raw TPD'!E70+E$29 -> 0.055788 | G95: 269 | H95: =MMULT(B95:E95,$H$12:$K$15) -> 0.01229868419 | I95: 0.01845963481 | J95: 0.004753908045 | K95: 0.07283563223
A96: ='Raw TPD'!A71 -> 271.33 | B96: ='Raw TPD'!B71+B$29 -> 0.085959 | C96: ='Raw TPD'!C71+C$29 -> 0.167753 | D96: ='Raw TPD'!D71+D$29 -> 0.018645 | E96: ='Raw TPD'!E71+E$29 -> 0.042601 | G96: 271.33 | H96: =MMULT(B96:E96,$H$12:$K$15) -> 0.01352499795 | I96: 0.03440093157 | J96: 0.007133885784 | K96: -0.008136608348
A97: ='Raw TPD'!A72 -> 273.68 | B97: ='Raw TPD'!B72+B$29 -> 0.095238 | C97: ='Raw TPD'!C72+C$29 -> 0.165311 | D97: ='Raw TPD'!D72+D$29 -> 0.018156 | E97: ='Raw TPD'!E72+E$29 -> 0.04895 | G97: 273.68 | H97: =MMULT(B97:E97,$H$12:$K$15) -> 0.01376239569 | I97: 0.03142936254 | J97: 0.006338693281 | K97: 0.01649126975
A98: ='Raw TPD'!A73 -> 276.06 | B98: ='Raw TPD'!B73+B$29 -> 0.080586 | C98: ='Raw TPD'!C73+C$29 -> 0.176545 | D98: ='Raw TPD'!D73+D$29 -> 0.013272 | E98: ='Raw TPD'!E73+E$29 -> 0.054811 | G98: 276.06 | H98: =MMULT(B98:E98,$H$12:$K$15) -> 0.01069151752 | I98: 0.03337821869 | J98: 0.00427619283 | K98: 0.02640360131
A99: ='Raw TPD'!A74 -> 279.64 | B99: ='Raw TPD'!B74+B$29 -> 0.071795 | C99: ='Raw TPD'!C74+C$29 -> 0.163358 | D99: ='Raw TPD'!D74+D$29 -> 0.007411 | E99: ='Raw TPD'!E74+E$29 -> 0.054811 | G99: 279.64 | H99: =MMULT(B99:E99,$H$12:$K$15) -> 0.00875984729 | I99: 0.02987638176 | J99: 0.001781450345 | K99: 0.03908803838
A100: ='Raw TPD'!A75 -> 282.02 | B100: ='Raw TPD'!B75+B$29 -> 0.093285 | C100: ='Raw TPD'!C75+C$29 -> 0.182894 | D100: ='Raw TPD'!D75+D$29 -> 0.009365 | E100: ='Raw TPD'!E75+E$29 -> 0.057253 | G100: 282.02 | H100: =MMULT(B100:E100,$H$12:$K$15) -> 0.01289419499 | I100: 0.03463068655 | J100: 0.00273857469 | K100: 0.0298243893
A101: ='Raw TPD'!A76 -> 285.59 | B101: ='Raw TPD'!B76+B$29 -> 0.079121 | C101: ='Raw TPD'!C76+C$29 -> 0.172149 | D101: ='Raw TPD'!D76+D$29 -> 0.017668 | E101: ='Raw TPD'!E76+E$29 -> 0.066532 | G101: 285.59 | H101: =MMULT(B101:E101,$H$12:$K$15) -> 0.007626232605 | I101: 0.02774352127 | J101: 0.004811477632 | K101: 0.07052425625
A102: ='Raw TPD'!A77 -> 287.97 | B102: ='Raw TPD'!B77+B$29 -> 0.088401 | C102: ='Raw TPD'!C77+C$29 -> 0.179475 | D102: ='Raw TPD'!D77+D$29 -> 0.01083 | E102: ='Raw TPD'!E77+E$29 -> 0.073858 | G102: 287.97 | H102: =MMULT(B102:E102,$H$12:$K$15) -> 0.008383994044 | I102: 0.02788257745 | J102: 0.001779965591 | K102: 0.09017750091
A103: ='Raw TPD'!A78 -> 291.6 | B103: ='Raw TPD'!B78+B$29 -> 0.087424 | C103: ='Raw TPD'!C78+C$29 -> 0.184847 | D103: ='Raw TPD'!D78+D$29 -> 0.008877 | E103: ='Raw TPD'!E78+E$29 -> 0.053834 | G103: 291.6 | H103: =MMULT(B103:E103,$H$12:$K$15) -> 0.01267456702 | I103: 0.03648970993 | J103: 0.002900816646 | K103: 0.01602691378
A104: ='Raw TPD'!A79 -> 293.93 | B104: ='Raw TPD'!B79+B$29 -> 0.072772 | C104: ='Raw TPD'!C79+C$29 -> 0.220989 | D104: ='Raw TPD'!D79+D$29 -> 0.01083 | E104: ='Raw TPD'!E79+E$29 -> 0.062625 | G104: 293.93 | H104: =MMULT(B104:E104,$H$12:$K$15) -> 0.009885990687 | I104: 0.04454492116 | J104: 0.003725370765 | K104: 0.01207093498
A105: ='Raw TPD'!A80 -> 297.56 | B105: ='Raw TPD'!B80+B$29 -> 0.07033 | C105: ='Raw TPD'!C80+C$29 -> 0.196081 | D105: ='Raw TPD'!D80+D$29 -> 0.012295 | E105: ='Raw TPD'!E80+E$29 -> 0.059206 | G105: 297.56 | H105: =MMULT(B105:E105,$H$12:$K$15) -> 0.008928742672 | I105: 0.03802722301 | J105: 0.003993028483 | K105: 0.02319034897
A106: ='Raw TPD'!A81 -> 301.09 | B106: ='Raw TPD'!B81+B$29 -> 0.080098 | C106: ='Raw TPD'!C81+C$29 -> 0.179475 | D106: ='Raw TPD'!D81+D$29 -> 0.013272 | E106: ='Raw TPD'!E81+E$29 -> 0.056276 | G106: 301.09 | H106: =MMULT(B106:E106,$H$12:$K$15) -> 0.01044062596 | I106: 0.03377910341 | J106: 0.004218249686 | K106: 0.02872997528
A107: ='Raw TPD'!A82 -> 303.47 | B107: ='Raw TPD'!B82+B$29 -> 0.081563 | C107: ='Raw TPD'!C82+C$29 -> 0.172149 | D107: ='Raw TPD'!D82+D$29 -> 0.011807 | E107: ='Raw TPD'!E82+E$29 -> 0.062625 | G107: 303.47 | H107: =MMULT(B107:E107,$H$12:$K$15) -> 0.009106816284 | I107: 0.02947328231 | J107: 0.002950492416 | K107: 0.05776381197
A108: ='Raw TPD'!A83 -> 305.86 | B108: ='Raw TPD'!B83+B$29 -> 0.084005 | C108: ='Raw TPD'!C83+C$29 -> 0.183871 | D108: ='Raw TPD'!D83+D$29 -> 0.013761 | E108: ='Raw TPD'!E83+E$29 -> 0.067021 | G108: 305.86 | H108: =MMULT(B108:E108,$H$12:$K$15) -> 0.009101659668 | I108: 0.03138554393 | J108: 0.003573499933 | K108: 0.0619147042
A109: ='Raw TPD'!A84 -> 308.25 | B109: ='Raw TPD'!B84+B$29 -> 0.078144 | C109: ='Raw TPD'!C84+C$29 -> 0.19022 | D109: ='Raw TPD'!D84+D$29 -> 0.005458 | E109: ='Raw TPD'!E84+E$29 -> 0.063114 | G109: 308.25 | H109: =MMULT(B109:E109,$H$12:$K$15) -> 0.009512811875 | I109: 0.03532112688 | J109: 0.0009518222751 | K109: 0.04324773254
A110: ='Raw TPD'!A85 -> 311.83 | B110: ='Raw TPD'!B85+B$29 -> 0.085959 | C110: ='Raw TPD'!C85+C$29 -> 0.199011 | D110: ='Raw TPD'!D85+D$29 -> 0.01083 | E110: ='Raw TPD'!E85+E$29 -> 0.064579 | G110: 311.83 | H110: =MMULT(B110:E110,$H$12:$K$15) -> 0.01078345044 | I110: 0.03702906139 | J110: 0.003035765935 | K110: 0.03975805424
A111: ='Raw TPD'!A86 -> 314.21 | B111: ='Raw TPD'!B86+B$29 -> 0.092308 | C111: ='Raw TPD'!C86+C$29 -> 0.178987 | D111: ='Raw TPD'!D86+D$29 -> 0.015714 | E111: ='Raw TPD'!E86+E$29 -> 0.06409 | G111: 314.21 | H111: =MMULT(B111:E111,$H$12:$K$15) -> 0.01086470531 | I111: 0.03065992927 | J111: 0.004437783616 | K111: 0.05636361302
A112: ='Raw TPD'!A87 -> 316.6 | B112: ='Raw TPD'!B87+B$29 -> 0.075702 | C112: ='Raw TPD'!C87+C$29 -> 0.175568 | D112: ='Raw TPD'!D87+D$29 -> 0.012784 | E112: ='Raw TPD'!E87+E$29 -> 0.061648 | G112: 316.6 | H112: =MMULT(B112:E112,$H$12:$K$15) -> 0.008391670521 | I112: 0.03084193585 | J112: 0.003485030218 | K112: 0.05088460768
A113: ='Raw TPD'!A88 -> 318.99 | B113: ='Raw TPD'!B88+B$29 -> 0.064957 | C113: ='Raw TPD'!C88+C$29 -> 0.182894 | D113: ='Raw TPD'!D88+D$29 -> 0.0079 | E113: ='Raw TPD'!E88+E$29 -> 0.050904 | G113: 318.99 | H113: =MMULT(B113:E113,$H$12:$K$15) -> 0.009253378652 | I113: 0.03720688773 | J113: 0.002760770778 | K113: 0.007067561312
A114: ='Raw TPD'!A89 -> 321.38 | B114: ='Raw TPD'!B89+B$29 -> 0.074725 | C114: ='Raw TPD'!C89+C$29 -> 0.179475 | D114: ='Raw TPD'!D89+D$29 -> 0.006923 | E114: ='Raw TPD'!E89+E$29 -> 0.055299 | G114: 321.38 | H114: =MMULT(B114:E114,$H$12:$K$15) -> 0.009954641782 | I114: 0.03463237911 | J114: 0.001928189884 | K114: 0.02591297331
A115: ='Raw TPD'!A90 -> 324.96 | B115: ='Raw TPD'!B90+B$29 -> 0.082051 | C115: ='Raw TPD'!C90+C$29 -> 0.177033 | D115: ='Raw TPD'!D90+D$29 -> 0.000574 | E115: ='Raw TPD'!E90+E$29 -> 0.053834 | G115: 324.96 | H115: =MMULT(B115:E115,$H$12:$K$15) -> 0.01170100284 | I115: 0.03476809702 | J115: -0.0003869890283 | K115: 0.02410448487
A116: ='Raw TPD'!A91 -> 327.4 | B116: ='Raw TPD'!B91+B$29 -> 0.075214 | C116: ='Raw TPD'!C91+C$29 -> 0.172149 | D116: ='Raw TPD'!D91+D$29 -> 0.01083 | E116: ='Raw TPD'!E91+E$29 -> 0.061648 | G116: 327.4 | H116: =MMULT(B116:E116,$H$12:$K$15) -> 0.008225698077 | I116: 0.02994611527 | J116: 0.002673969635 | K116: 0.05428390569
A117: ='Raw TPD'!A92 -> 329.74 | B117: ='Raw TPD'!B92+B$29 -> 0.068864 | C117: ='Raw TPD'!C92+C$29 -> 0.152613 | D117: ='Raw TPD'!D92+D$29 -> 0.006435 | E117: ='Raw TPD'!E92+E$29 -> 0.051392 | G117: 329.74 | H117: =MMULT(B117:E117,$H$12:$K$15) -> 0.008482364014 | I117: 0.02786389726 | J117: 0.001463686341 | K117: 0.03727886184
A118: ='Raw TPD'!A93 -> 332.13 | B118: ='Raw TPD'!B93+B$29 -> 0.075214 | C118: ='Raw TPD'!C93+C$29 -> 0.163846 | D118: ='Raw TPD'!D93+D$29 -> 0.009853 | E118: ='Raw TPD'!E93+E$29 -> 0.044066 | G118: 332.13 | H118: =MMULT(B118:E118,$H$12:$K$15) -> 0.01150272888 | I118: 0.03346718857 | J118: 0.003631649513 | K118: 0.001251683738
A119: ='Raw TPD'!A94 -> 334.52 | B119: ='Raw TPD'!B94+B$29 -> 0.103053 | C119: ='Raw TPD'!C94+C$29 -> 0.154567 | D119: ='Raw TPD'!D94+D$29 -> 0.009853 | E119: ='Raw TPD'!E94+E$29 -> 0.045043 | G119: 334.52 | H119: =MMULT(B119:E119,$H$12:$K$15) -> 0.01578997299 | I119: 0.02999955003 | J119: 0.003308926504 | K119: 0.01420877172
A120: ='Raw TPD'!A95 -> 336.92 | B120: ='Raw TPD'!B95+B$29 -> 0.088401 | C120: ='Raw TPD'!C95+C$29 -> 0.157985 | D120: ='Raw TPD'!D95+D$29 -> 0.003016 | E120: ='Raw TPD'!E95+E$29 -> 0.052369 | G120: 336.92 | H120: =MMULT(B120:E120,$H$12:$K$15) -> 0.01213072298 | I120: 0.0292067499 | J120: 0.0002069181742 | K120: 0.0367073151
A121: ='Raw TPD'!A96 -> 339.31 | B121: ='Raw TPD'!B96+B$29 -> 0.084005 | C121: ='Raw TPD'!C96+C$29 -> 0.177521 | D121: ='Raw TPD'!D96+D$29 -> 0.004481 | E121: ='Raw TPD'!E96+E$29 -> 0.051392 | G121: 339.31 | H121: =MMULT(B121:E121,$H$12:$K$15) -> 0.01241145657 | I121: 0.03544239991 | J121: 0.001297178268 | K121: 0.0147998576
A122: ='Raw TPD'!A97 -> 341.7 | B122: ='Raw TPD'!B97+B$29 -> 0.07033 | C122: ='Raw TPD'!C97+C$29 -> 0.15652 | D122: ='Raw TPD'!D97+D$29 -> 0.006923 | E122: ='Raw TPD'!E97+E$29 -> 0.056276 | G122: 341.7 | H122: =MMULT(B122:E122,$H$12:$K$15) -> 0.007897583638 | I122: 0.02734250121 | J122: 0.001314749385 | K122: 0.05054215157
A123: ='Raw TPD'!A98 -> 345.29 | B123: ='Raw TPD'!B98+B$29 -> 0.084493 | C123: ='Raw TPD'!C98+C$29 -> 0.150171 | D123: ='Raw TPD'!D98+D$29 -> 0.004481 | E123: ='Raw TPD'!E98+E$29 -> 0.067998 | G123: 345.29 | H123: =MMULT(B123:E123,$H$12:$K$15) -> 0.00778807095 | I123: 0.0214389325 | J123: -0.0007703334909 | K123: 0.0978089118
A124: ='Raw TPD'!A99 -> 347.69 | B124: ='Raw TPD'!B99+B$29 -> 0.086447 | C124: ='Raw TPD'!C99+C$29 -> 0.168242 | D124: ='Raw TPD'!D99+D$29 -> 0.003993 | E124: ='Raw TPD'!E99+E$29 -> 0.046996 | G124: 347.69 | H124: =MMULT(B124:E124,$H$12:$K$15) -> 0.01333458478 | I124: 0.03411572295 | J124: 0.001276093823 | K124: 0.008362800257
A125: ='Raw TPD'!A100 -> 350.08 | B125: ='Raw TPD'!B100+B$29 -> 0.089377 | C125: ='Raw TPD'!C100+C$29 -> 0.169219 | D125: ='Raw TPD'!D100+D$29 -> 0.008877 | E125: ='Raw TPD'!E100+E$29 -> 0.050415 | G125: 350.08 | H125: =MMULT(B125:E125,$H$12:$K$15) -> 0.01299128098 | I125: 0.032862777 | J125: 0.00283134082 | K125: 0.01881631631
A126: ='Raw TPD'!A101 -> 353.67 | B126: ='Raw TPD'!B101+B$29 -> 0.106471 | C126: ='Raw TPD'!C101+C$29 -> 0.161893 | D126: ='Raw TPD'!D101+D$29 -> 0.002039 | E126: ='Raw TPD'!E101+E$29 -> 0.038694 | G126: 353.67 | H126: =MMULT(B126:E126,$H$12:$K$15) -> 0.01837185325 | I126: 0.03492765979 | J126: 0.001096071738 | K126: -0.01357362648
A127: ='Raw TPD'!A102 -> 356.12 | B127: ='Raw TPD'!B102+B$29 -> 0.096215 | C127: ='Raw TPD'!C102+C$29 -> 0.146752 | D127: ='Raw TPD'!D102+D$29 -> 0.001551 | E127: ='Raw TPD'!E102+E$29 -> 0.051392 | G127: 356.12 | H127: =MMULT(B127:E127,$H$12:$K$15) -> 0.01324760506 | I127: 0.02613272567 | J127: -0.0005249178085 | K127: 0.04422431201
A128: ='Raw TPD'!A103 -> 359.67 | B128: ='Raw TPD'!B103+B$29 -> 0.095727 | C128: ='Raw TPD'!C103+C$29 -> 0.166288 | D128: ='Raw TPD'!D103+D$29 -> 0.005946 | E128: ='Raw TPD'!E103+E$29 -> 0.052369 | G128: 359.67 | H128: =MMULT(B128:E128,$H$12:$K$15) -> 0.0136952542 | I128: 0.03144746004 | J128: 0.001491352607 | K128: 0.02886957444
A129: ='Raw TPD'!A104 -> 362.06 | B129: ='Raw TPD'!B104+B$29 -> 0.102564 | C129: ='Raw TPD'!C104+C$29 -> 0.155055 | D129: ='Raw TPD'!D104+D$29 -> 0.002527 | E129: ='Raw TPD'!E104+E$29 -> 0.041624 | G129: 362.06 | H129: =MMULT(B129:E129,$H$12:$K$15) -> 0.01673501675 | I129: 0.03185074828 | J129: 0.0008707161766 | K129: 0.002757813209
A130: ='Raw TPD'!A105 -> 364.46 | B130: ='Raw TPD'!B105+B$29 -> 0.075702 | C130: ='Raw TPD'!C105+C$29 -> 0.147729 | D130: ='Raw TPD'!D105+D$29 -> 0.003504 | E130: ='Raw TPD'!E105+E$29 -> 0.039182 | G130: 364.46 | H130: =MMULT(B130:E130,$H$12:$K$15) -> 0.01210245122 | I130: 0.03066779219 | J130: 0.001299614132 | K130: 0.0001199699224
A131: ='Raw TPD'!A106 -> 366.86 | B131: ='Raw TPD'!B106+B$29 -> 0.087912 | C131: ='Raw TPD'!C106+C$29 -> 0.179963 | D131: ='Raw TPD'!D106+D$29 -> 0.007411 | E131: ='Raw TPD'!E106+E$29 -> 0.044554 | G131: 366.86 | H131: =MMULT(B131:E131,$H$12:$K$15) -> 0.01450635126 | I131: 0.03825897447 | J131: 0.003038186163 | K131: -0.01136896686
A132: ='Raw TPD'!A107 -> 370.46 | B132: ='Raw TPD'!B107+B$29 -> 0.089866 | C132: ='Raw TPD'!C107+C$29 -> 0.164823 | D132: ='Raw TPD'!D107+D$29 -> 0.007411 | E132: ='Raw TPD'!E107+E$29 -> 0.040647 | G132: 370.46 | H132: =MMULT(B132:E132,$H$12:$K$15) -> 0.01494681768 | I132: 0.03494704011 | J132: 0.003022126913 | K132: -0.01072419996
A133: ='Raw TPD'!A108 -> 372.86 | B133: ='Raw TPD'!B108+B$29 -> 0.081563 | C133: ='Raw TPD'!C108+C$29 -> 0.149194 | D133: ='Raw TPD'!D108+D$29 -> 0.006435 | E133: ='Raw TPD'!E108+E$29 -> 0.037717 | G133: 372.86 | H133: =MMULT(B133:E133,$H$12:$K$15) -> 0.01338881787 | I133: 0.03133621058 | J133: 0.002553275321 | K133: -0.00646732257
A134: ='Raw TPD'!A109 -> 375.26 | B134: ='Raw TPD'!B109+B$29 -> 0.07326 | C134: ='Raw TPD'!C109+C$29 -> 0.144799 | D134: ='Raw TPD'!D109+D$29 -> 0.005946 | E134: ='Raw TPD'!E109+E$29 -> 0.038205 | G134: 375.26 | H134: =MMULT(B134:E134,$H$12:$K$15) -> 0.01163324935 | I134: 0.02995498025 | J134: 0.002232840384 | K134: -0.0009006064787
A135: ='Raw TPD'!A110 -> 378.86 | B135: ='Raw TPD'!B110+B$29 -> 0.07326 | C135: ='Raw TPD'!C110+C$29 -> 0.143333 | D135: ='Raw TPD'!D110+D$29 -> 0.002527 | E135: ='Raw TPD'!E110+E$29 -> 0.02746 | G135: 378.86 | H135: =MMULT(B135:E135,$H$12:$K$15) -> 0.01392229745 | I135: 0.03341342021 | J135: 0.001844577168 | K135: -0.03634197882
A136: ='Raw TPD'!A111 -> 381.26 | B136: ='Raw TPD'!B111+B$29 -> 0.074237 | C136: ='Raw TPD'!C111+C$29 -> 0.135519 | D136: ='Raw TPD'!D111+D$29 -> 0.003504 | E136: ='Raw TPD'!E111+E$29 -> 0.034786 | G136: 381.26 | H136: =MMULT(B136:E136,$H$12:$K$15) -> 0.01217658791 | I136: 0.02845370655 | J136: 0.001396574988 | K136: -0.003772936074
A137: ='Raw TPD'!A112 -> 383.67 | B137: ='Raw TPD'!B112+B$29 -> 0.067399 | C137: ='Raw TPD'!C112+C$29 -> 0.154567 | D137: ='Raw TPD'!D112+D$29 -> 0.007411 | E137: ='Raw TPD'!E112+E$29 -> 0.04602 | G137: 383.67 | H137: =MMULT(B137:E137,$H$12:$K$15) -> 0.009382608963 | I137: 0.03023341314 | J137: 0.002339271657 | K137: 0.01669192899
A138: ='Raw TPD'!A113 -> 386.07 | B138: ='Raw TPD'!B113+B$29 -> 0.074237 | C138: ='Raw TPD'!C113+C$29 -> 0.158962 | D138: ='Raw TPD'!D113+D$29 -> -0.00138 | E138: ='Raw TPD'!E113+E$29 -> 0.029902 | G138: 386.07 | H138: =MMULT(B138:E138,$H$12:$K$15) -> 0.0144872607 | I138: 0.03762566203 | J138: 0.0005320778584 | K138: -0.04195954387
A139: ='Raw TPD'!A114 -> 388.47 | B139: ='Raw TPD'!B114+B$29 -> 0.046398 | C139: ='Raw TPD'!C114+C$29 -> 0.124286 | D139: ='Raw TPD'!D114+D$29 -> 0.003504 | E139: ='Raw TPD'!E114+E$29 -> 0.026972 | G139: 388.47 | H139: =MMULT(B139:E139,$H$12:$K$15) -> 0.008336212733 | I139: 0.02798850049 | J139: 0.001832881089 | K139: -0.02129030044
A140: ='Raw TPD'!A115 -> 392.08 | B140: ='Raw TPD'!B115+B$29 -> 0.035653 | C140: ='Raw TPD'!C115+C$29 -> 0.115006 | D140: ='Raw TPD'!D115+D$29 -> 0.003016 | E140: ='Raw TPD'!E115+E$29 -> 0.043089 | G140: 392.08 | H140: =MMULT(B140:E140,$H$12:$K$15) -> 0.002695513066 | I140: 0.01982390827 | J140: 5.344825131e-05 | K140: 0.04286901797
A141: ='Raw TPD'!A116 -> 394.49 | B141: ='Raw TPD'!B116+B$29 -> 0.075702 | C141: ='Raw TPD'!C116+C$29 -> 0.134054 | D141: ='Raw TPD'!D116+D$29 -> -0.000891 | E141: ='Raw TPD'!E116+E$29 -> 0.038205 | G141: 394.49 | H141: =MMULT(B141:E141,$H$12:$K$15) -> 0.01184374162 | I141: 0.02714700157 | J141: -0.0005802098771 | K141: 0.009996486112
A142: ='Raw TPD'!A117 -> 396.89 | B142: ='Raw TPD'!B117+B$29 -> 0.042002 | C142: ='Raw TPD'!C117+C$29 -> 0.126239 | D142: ='Raw TPD'!D117+D$29 -> 0.007411 | E142: ='Raw TPD'!E117+E$29 -> 0.035275 | G142: 396.89 | H142: =MMULT(B142:E142,$H$12:$K$15) -> 0.005775894332 | I142: 0.02552216966 | J142: 0.002629555223 | K142: 0.005037260438
A143: ='Raw TPD'!A118 -> 399.3 | B143: ='Raw TPD'!B118+B$29 -> 0.058608 | C143: ='Raw TPD'!C118+C$29 -> 0.12917 | D143: ='Raw TPD'!D118+D$29 -> 0.004481 | E143: ='Raw TPD'!E118+E$29 -> 0.037228 | G143: 399.3 | H143: =MMULT(B143:E143,$H$12:$K$15) -> 0.008569569057 | I143: 0.02578426953 | J143: 0.001417591012 | K143: 0.009965375785
A144: ='Raw TPD'!A119 -> 401.7 | B144: ='Raw TPD'!B119+B$29 -> 0.047863 | C144: ='Raw TPD'!C119+C$29 -> 0.124286 | D144: ='Raw TPD'!D119+D$29 -> 0.003993 | E144: ='Raw TPD'!E119+E$29 -> 0.028926 | G144: =A144 -> 401.7 | H144: =MMULT(B144:E144,$H$12:$K$15) -> 0.008172071849 | I144: 0.02727191546 | J144: 0.001846346815 | K144: -0.01453243183
A145: ='Raw TPD'!A120 -> 405.31 | B145: ='Raw TPD'!B120+B$29 -> 0.035653 | C145: ='Raw TPD'!C120+C$29 -> 0.114518 | D145: ='Raw TPD'!D120+D$29 -> 0.003993 | E145: ='Raw TPD'!E120+E$29 -> 0.036252 | G145: 405.31 | H145: =MMULT(B145:E145,$H$12:$K$15) -> 0.004042352782 | I145: 0.02193074316 | J145: 0.0009978686206 | K145: 0.01953333448
A146: ='Raw TPD'!A121 -> 407.72 | B146: ='Raw TPD'!B121+B$29 -> 0.037118 | C146: ='Raw TPD'!C121+C$29 -> 0.113541 | D146: ='Raw TPD'!D121+D$29 -> 0.004481 | E146: ='Raw TPD'!E121+E$29 -> 0.032833 | G146: 407.72 | H146: =MMULT(B146:E146,$H$12:$K$15) -> 0.004940620734 | I146: 0.02274470746 | J146: 0.001451706206 | K146: 0.008595676214
A147: ='Raw TPD'!A122 -> 410.13 | B147: ='Raw TPD'!B122+B$29 -> 0.040537 | C147: ='Raw TPD'!C122+C$29 -> 0.084725 | D147: ='Raw TPD'!D122+D$29 -> 0.001062 | E147: ='Raw TPD'!E122+E$29 -> 0.017692 | G147: 410.13 | H147: =MMULT(B147:E147,$H$12:$K$15) -> 0.00745670104 | I147: 0.01931549586 | J147: 0.0008049349101 | K147: -0.01646678968
A148: ='Raw TPD'!A123 -> 412.54 | B148: ='Raw TPD'!B123+B$29 -> 0.03663 | C148: ='Raw TPD'!C123+C$29 -> 0.105238 | D148: ='Raw TPD'!D123+D$29 -> 0.001062 | E148: ='Raw TPD'!E123+E$29 -> 0.025507 | G148: 412.54 | H148: =MMULT(B148:E148,$H$12:$K$15) -> 0.006117028365 | I148: 0.02295837857 | J148: 0.0006102608371 | K148: -0.008650770922
A149: ='Raw TPD'!A124 -> 416.15 | B149: ='Raw TPD'!B124+B$29 -> 0.040537 | C149: ='Raw TPD'!C124+C$29 -> 0.120867 | D149: ='Raw TPD'!D124+D$29 -> 0.000574 | E149: ='Raw TPD'!E124+E$29 -> 0.02746 | G149: 416.15 | H149: =MMULT(B149:E149,$H$12:$K$15) -> 0.007159553609 | I149: 0.02705620865 | J149: 0.0006185063028 | K149: -0.01626540231
A150: ='Raw TPD'!A125 -> 417.35 | B150: ='Raw TPD'!B125+B$29 -> 0.031746 | C150: ='Raw TPD'!C125+C$29 -> 0.093028 | D150: ='Raw TPD'!D125+D$29 -> 0.003016 | E150: ='Raw TPD'!E125+E$29 -> 0.02746 | G150: 417.35 | H150: =MMULT(B150:E150,$H$12:$K$15) -> 0.004195872263 | I150: 0.01847850553 | J150: 0.0008945568528 | K150: 0.009099135315
A151: ='Raw TPD'!A126 -> 420.97 | B151: ='Raw TPD'!B126+B$29 -> 0.031746 | C151: ='Raw TPD'!C126+C$29 -> 0.079353 | D151: ='Raw TPD'!D126+D$29 -> 0.000574 | E151: ='Raw TPD'!E126+E$29 -> 0.022576 | G151: 420.97 | H151: =MMULT(B151:E151,$H$12:$K$15) -> 0.004662148312 | I151: 0.01614523429 | J151: 8.34443882e-05 | K151: 0.005216934265
A152: ='Raw TPD'!A127 -> 423.38 | B152: ='Raw TPD'!B127+B$29 -> 0.052259 | C152: ='Raw TPD'!C127+C$29 -> 0.067631 | D152: ='Raw TPD'!D127+D$29 -> 0.001551 | E152: ='Raw TPD'!E127+E$29 -> 0.034786 | G152: 423.38 | H152: =MMULT(B152:E152,$H$12:$K$15) -> 0.005181311437 | I152: 0.008117769537 | J152: -0.0008927102881 | K152: 0.0589909056
A153: ='Raw TPD'!A128 -> 425.84 | B153: ='Raw TPD'!B128+B$29 -> 0.03956 | C153: ='Raw TPD'!C128+C$29 -> 0.086679 | D153: ='Raw TPD'!D128+D$29 -> 0.001551 | E153: ='Raw TPD'!E128+E$29 -> 0.028926 | G153: 425.84 | H153: =MMULT(B153:E153,$H$12:$K$15) -> 0.005038231892 | I153: 0.01606350759 | J153: 6.537520294e-05 | K153: 0.02052448812
A154: ='Raw TPD'!A129 -> 428.2 | B154: ='Raw TPD'!B129+B$29 -> 0.02442 | C154: ='Raw TPD'!C129+C$29 -> 0.081306 | D154: ='Raw TPD'!D129+D$29 -> -0.004799 | E154: ='Raw TPD'!E129+E$29 -> 0.025995 | G154: 428.2 | H154: =MMULT(B154:E154,$H$12:$K$15) -> 0.002975258169 | I154: 0.01604862606 | J154: -0.002173143844 | K154: 0.01562323791
A155: ='Raw TPD'!A130 -> 430.61 | B155: ='Raw TPD'!B130+B$29 -> 0.031746 | C155: ='Raw TPD'!C130+C$29 -> 0.088144 | D155: ='Raw TPD'!D130+D$29 -> 0.004969 | E155: ='Raw TPD'!E130+E$29 -> 0.02453 | G155: 430.61 | H155: =MMULT(B155:E155,$H$12:$K$15) -> 0.004489959972 | I155: 0.01784304553 | J155: 0.001765637287 | K155: 0.003275159657
A156: ='Raw TPD'!A131 -> 434.23 | B156: ='Raw TPD'!B131+B$29 -> 0.029792 | C156: ='Raw TPD'!C131+C$29 -> 0.085214 | D156: ='Raw TPD'!D131+D$29 -> 0.000574 | E156: ='Raw TPD'!E131+E$29 -> 0.017204 | G156: 434.23 | H156: =MMULT(B156:E156,$H$12:$K$15) -> 0.005699807402 | I156: 0.0197834473 | J156: 0.0006844438671 | K156: -0.01891274631
A157: ='Raw TPD'!A132 -> 436.69 | B157: ='Raw TPD'!B132+B$29 -> 0.026862 | C157: ='Raw TPD'!C132+C$29 -> 0.088144 | D157: ='Raw TPD'!D132+D$29 -> 0.003016 | E157: ='Raw TPD'!E132+E$29 -> 0.019646 | G157: 436.69 | H157: =MMULT(B157:E157,$H$12:$K$15) -> 0.004714283985 | I157: 0.01970066119 | J157: 0.001459202788 | K157: -0.0135709776
A158: ='Raw TPD'!A133 -> 439.1 | B158: ='Raw TPD'!B133+B$29 -> 0.033211 | C158: ='Raw TPD'!C133+C$29 -> 0.075934 | D158: ='Raw TPD'!D133+D$29 -> -0.00138 | E158: ='Raw TPD'!E133+E$29 -> 0.029902 | G158: 439.1 | H158: =MMULT(B158:E158,$H$12:$K$15) -> 0.003330565308 | I158: 0.0127348178 | J158: -0.001361106494 | K158: 0.03405039507
A159: ='Raw TPD'!A134 -> 441.46 | B159: ='Raw TPD'!B134+B$29 -> 0.008303 | C159: ='Raw TPD'!C134+C$29 -> 0.088144 | D159: ='Raw TPD'!D134+D$29 -> 0.003993 | E159: ='Raw TPD'!E134+E$29 -> 0.019646 | G159: 441.46 | H159: =MMULT(B159:E159,$H$12:$K$15) -> 0.001390843291 | I159: 0.01983181172 | J159: 0.001840640501 | K159: -0.01430332759
A160: ='Raw TPD'!A135 -> 445.08 | B160: ='Raw TPD'!B135+B$29 -> 0.038584 | C160: ='Raw TPD'!C135+C$29 -> 0.067143 | D160: ='Raw TPD'!D135+D$29 -> 8.5e-05 | E160: ='Raw TPD'!E135+E$29 -> 0.023065 | G160: 445.08 | H160: =MMULT(B160:E160,$H$12:$K$15) -> 0.005217692893 | I160: 0.0122137057 | J160: -0.0004310252397 | K160: 0.01857399843
A161: ='Raw TPD'!A136 -> 447.5 | B161: ='Raw TPD'!B136+B$29 -> 0.027839 | C161: ='Raw TPD'!C136+C$29 -> 0.082283 | D161: ='Raw TPD'!D136+D$29 -> -0.003333 | E161: ='Raw TPD'!E136+E$29 -> 0.019646 | G161: 447.5 | H161: =MMULT(B161:E161,$H$12:$K$15) -> 0.004874794241 | I161: 0.01836359336 | J161: -0.001056429646 | K161: -0.007331406764
A162: ='Raw TPD'!A137 -> 449.91 | B162: ='Raw TPD'!B137+B$29 -> 0.040049 | C162: ='Raw TPD'!C137+C$29 -> 0.048584 | D162: ='Raw TPD'!D137+D$29 -> 8.5e-05 | E162: ='Raw TPD'!E137+E$29 -> 0.025507 | G162: 449.91 | H162: =MMULT(B162:E162,$H$12:$K$15) -> 0.004101518088 | I162: 0.00570291034 | J162: -0.001073643358 | K162: 0.0443746363
A163: ='Raw TPD'!A138 -> 452.32 | B163: ='Raw TPD'!B138+B$29 -> 0.020024 | C163: ='Raw TPD'!C138+C$29 -> 0.054444 | D163: ='Raw TPD'!D138+D$29 -> -0.006264 | E163: ='Raw TPD'!E138+E$29 -> 0.027949 | G163: 452.32 | H163: =MMULT(B163:E163,$H$12:$K$15) -> 0.0005936844014 | I163: 0.007340586328 | J163: -0.003510428852 | K163: 0.04744856139
A164: ='Raw TPD'!A139 -> 454.78 | B164: ='Raw TPD'!B139+B$29 -> 0.034676 | C164: ='Raw TPD'!C139+C$29 -> 0.076422 | D164: ='Raw TPD'!D139+D$29 -> 0.001551 | E164: ='Raw TPD'!E139+E$29 -> 0.022088 | G164: 454.78 | H164: =MMULT(B164:E164,$H$12:$K$15) -> 0.00510298589 | I164: 0.0153137941 | J164: 0.0004211259163 | K164: 0.006241362466
A165: ='Raw TPD'!A140 -> 458.36 | B165: ='Raw TPD'!B140+B$29 -> 0.036142 | C165: ='Raw TPD'!C140+C$29 -> 0.062259 | D165: ='Raw TPD'!D140+D$29 -> -0.000891 | E165: ='Raw TPD'!E140+E$29 -> 0.010366 | G165: 458.36 | H165: =MMULT(B165:E165,$H$12:$K$15) -> 0.007216097846 | I165: 0.01514284539 | J165: 0.0001872520731 | K165: -0.02081653846
A166: ='Raw TPD'!A141 -> 460.77 | B166: ='Raw TPD'!B141+B$29 -> 0.021001 | C166: ='Raw TPD'!C141+C$29 -> 0.059817 | D166: ='Raw TPD'!D141+D$29 -> 0.002527 | E166: ='Raw TPD'!E141+E$29 -> 0.022576 | G166: 460.77 | H166: =MMULT(B166:E166,$H$12:$K$15) -> 0.001763021423 | I166: 0.01015828702 | J166: 0.0003706251081 | K166: 0.02283609641
A167: ='Raw TPD'!A142 -> 464.39 | B167: ='Raw TPD'!B142+B$29 -> 0.067888 | C167: ='Raw TPD'!C142+C$29 -> 0.097424 | D167: ='Raw TPD'!D142+D$29 -> 0.001551 | E167: ='Raw TPD'!E142+E$29 -> 0.036252 | G167: 464.39 | H167: =MMULT(B167:E167,$H$12:$K$15) -> 0.009042845668 | I167: 0.01654054361 | J167: -0.0003405731655 | K167: 0.03682301217
A168: ='Raw TPD'!A143 -> 466.8 | B168: ='Raw TPD'!B143+B$29 -> 0.059096 | C168: ='Raw TPD'!C143+C$29 -> 0.121844 | D168: ='Raw TPD'!D143+D$29 -> -0.000891 | E168: ='Raw TPD'!E143+E$29 -> 0.033321 | G168: 466.8 | H168: =MMULT(B168:E168,$H$12:$K$15) -> 0.009340181292 | I168: 0.02526402332 | J168: -0.0004286072172 | K168: 0.003909752451
A169: ='Raw TPD'!A144 -> 469.22 | B169: ='Raw TPD'!B144+B$29 -> 0.077656 | C169: ='Raw TPD'!C144+C$29 -> 0.117448 | D169: ='Raw TPD'!D144+D$29 -> 0.000574 | E169: ='Raw TPD'!E144+E$29 -> 0.025507 | G169: 469.22 | H169: =MMULT(B169:E169,$H$12:$K$15) -> 0.01396794319 | I169: 0.02627293443 | J169: 0.0006768230571 | K169: -0.01860677647
A170: ='Raw TPD'!A145 -> 471.63 | B170: ='Raw TPD'!B145+B$29 -> 0.081563 | C170: ='Raw TPD'!C145+C$29 -> 0.088633 | D170: ='Raw TPD'!D145+D$29 -> 0.002039 | E170: ='Raw TPD'!E145+E$29 -> 0.03381 | G170: 471.63 | H170: =MMULT(B170:E170,$H$12:$K$15) -> 0.01153248414 | I170: 0.01450429094 | J170: -0.0001624978344 | K170: 0.0369570026
A171: ='Raw TPD'!A146 -> 474.04 | B171: ='Raw TPD'!B146+B$29 -> 0.075214 | C171: ='Raw TPD'!C146+C$29 -> 0.100843 | D171: ='Raw TPD'!D146+D$29 -> 0.001551 | E171: ='Raw TPD'!E146+E$29 -> 0.025995 | G171: 474.04 | H171: =MMULT(B171:E171,$H$12:$K$15) -> 0.01261498868 | I171: 0.02099492527 | J171: 0.000617385013 | K171: -0.001638293807
A172: ='Raw TPD'!A147 -> 476.46 | B172: ='Raw TPD'!B147+B$29 -> 0.077656 | C172: ='Raw TPD'!C147+C$29 -> 0.091075 | D172: ='Raw TPD'!D147+D$29 -> 0.000574 | E172: ='Raw TPD'!E147+E$29 -> 0.0216 | G172: 476.46 | H172: =MMULT(B172:E172,$H$12:$K$15) -> 0.01353519688 | I172: 0.01955427695 | J172: 0.0004016502614 | K172: -0.007558794077
A173: ='Raw TPD'!A148 -> 480.08 | B173: ='Raw TPD'!B148+B$29 -> 0.061538 | C173: ='Raw TPD'!C148+C$29 -> 0.074957 | D173: ='Raw TPD'!D148+D$29 -> -0.003333 | E173: ='Raw TPD'!E148+E$29 -> 0.030879 | G173: 480.08 | H173: =MMULT(B173:E173,$H$12:$K$15) -> 0.008174924939 | I173: 0.01193759323 | J173: -0.002223263979 | K173: 0.03951612096
A174: ='Raw TPD'!A149 -> 482.49 | B174: ='Raw TPD'!B149+B$29 -> 0.045421 | C174: ='Raw TPD'!C149+C$29 -> 0.075446 | D174: ='Raw TPD'!D149+D$29 -> -0.00431 | E174: ='Raw TPD'!E149+E$29 -> 0.031856 | G174: 482.49 | H174: =MMULT(B174:E174,$H$12:$K$15) -> 0.005185832831 | I174: 0.01200109963 | J174: -0.002648872459 | K174: 0.04202189426
A175: ='Raw TPD'!A150 -> 484.9 | B175: ='Raw TPD'!B150+B$29 -> 0.047863 | C175: ='Raw TPD'!C150+C$29 -> 0.066654 | D175: ='Raw TPD'!D150+D$29 -> 0.003993 | E175: ='Raw TPD'!E150+E$29 -> 0.018181 | G175: 484.9 | H175: =MMULT(B175:E175,$H$12:$K$15) -> 0.007681664224 | I175: 0.01334104839 | J175: 0.001435390722 | K175: 0.001967148642
A176: ='Raw TPD'!A151 -> 487.32 | B176: ='Raw TPD'!B151+B$29 -> 0.043468 | C176: ='Raw TPD'!C151+C$29 -> 0.081795 | D176: ='Raw TPD'!D151+D$29 -> 0.002039 | E176: ='Raw TPD'!E151+E$29 -> 0.02746 | G176: 487.32 | H176: =MMULT(B176:E176,$H$12:$K$15) -> 0.005782326366 | I176: 0.01499385204 | J176: 0.0002580534913 | K176: 0.02007218072
A177: ='Raw TPD'!A152 -> 489.73 | B177: ='Raw TPD'!B152+B$29 -> 0.068864 | C177: ='Raw TPD'!C152+C$29 -> 0.04956 | D177: ='Raw TPD'!D152+D$29 -> 0.000574 | E177: ='Raw TPD'!E152+E$29 -> 0.021111 | G177: 489.73 | H177: =MMULT(B177:E177,$H$12:$K$15) -> 0.01013104065 | I177: 0.007147226497 | J177: -0.0005125050694 | K177: 0.02914386025
A178: ='Raw TPD'!A153 -> 493.35 | B178: ='Raw TPD'!B153+B$29 -> 0.064957 | C178: ='Raw TPD'!C153+C$29 -> 0.074469 | D178: ='Raw TPD'!D153+D$29 -> 0.002039 | E178: ='Raw TPD'!E153+E$29 -> 0.02746 | G178: 493.35 | H178: =MMULT(B178:E178,$H$12:$K$15) -> 0.009239535492 | I178: 0.0125239369 | J178: 7.019306187e-05 | K178: 0.02761463677
A179: ='Raw TPD'!A154 -> 495.81 | B179: ='Raw TPD'!B154+B$29 -> 0.058608 | C179: ='Raw TPD'!C154+C$29 -> 0.087656 | D179: ='Raw TPD'!D154+D$29 -> -0.000891 | E179: ='Raw TPD'!E154+E$29 -> 0.0216 | G179: 495.81 | H179: =MMULT(B179:E179,$H$12:$K$15) -> 0.01006581773 | I179: 0.01882514409 | J179: -0.000210810802 | K179: -0.004834611085
A180: ='Raw TPD'!A155 -> 498.17 | B180: ='Raw TPD'!B155+B$29 -> 0.062027 | C180: ='Raw TPD'!C155+C$29 -> 0.093028 | D180: ='Raw TPD'!D155+D$29 -> -0.002845 | E180: ='Raw TPD'!E155+E$29 -> 0.022576 | G180: 498.17 | H180: =MMULT(B180:E180,$H$12:$K$15) -> 0.01080252987 | I180: 0.02023735669 | J180: -0.0009052395152 | K180: -0.006117995582
A181: ='Raw TPD'!A156 -> 500.63 | B181: ='Raw TPD'!B156+B$29 -> 0.065934 | C181: ='Raw TPD'!C156+C$29 -> 0.065189 | D181: ='Raw TPD'!D156+D$29 -> 0.003016 | E181: ='Raw TPD'!E156+E$29 -> 0.017204 | G181: 500.63 | H181: =MMULT(B181:E181,$H$12:$K$15) -> 0.01105149559 | I181: 0.01310064605 | J181: 0.001104619643 | K181: 0.0006652710371
A182: ='Raw TPD'!A157 -> 502.99 | B182: ='Raw TPD'!B157+B$29 -> 0.059585 | C182: ='Raw TPD'!C157+C$29 -> 0.054444 | D182: ='Raw TPD'!D157+D$29 -> -0.002845 | E182: ='Raw TPD'!E157+E$29 -> 0.017692 | G182: 502.99 | H182: =MMULT(B182:E182,$H$12:$K$15) -> 0.009565833627 | I182: 0.01015134404 | J182: -0.001377555282 | K182: 0.01284512998
A183: ='Raw TPD'!A158 -> 506.61 | B183: ='Raw TPD'!B158+B$29 -> 0.04591 | C183: ='Raw TPD'!C158+C$29 -> 0.084725 | D183: ='Raw TPD'!D158+D$29 -> -0.005287 | E183: ='Raw TPD'!E158+E$29 -> 0.019158 | G183: 506.61 | H183: =MMULT(B183:E183,$H$12:$K$15) -> 0.008367719639 | I183: 0.01922020644 | J183: -0.001704743106 | K183: -0.01046628427
A184: ='Raw TPD'!A159 -> 509.01 | B184: ='Raw TPD'!B159+B$29 -> 0.038095 | C184: ='Raw TPD'!C159+C$29 -> 0.064212 | D184: ='Raw TPD'!D159+D$29 -> 0.003016 | E184: ='Raw TPD'!E159+E$29 -> 0.029902 | G184: 509.01 | H184: =MMULT(B184:E184,$H$12:$K$15) -> 0.003461924725 | I184: 0.008784309046 | J184: 9.810941206e-06 | K184: 0.04462102341
A185: ='Raw TPD'!A160 -> 511.42 | B185: ='Raw TPD'!B160+B$29 -> 0.032234 | C185: ='Raw TPD'!C160+C$29 -> 0.057863 | D185: ='Raw TPD'!D160+D$29 -> -0.002357 | E185: ='Raw TPD'!E160+E$29 -> 0.013785 | G185: 511.42 | H185: =MMULT(B185:E185,$H$12:$K$15) -> 0.005673837449 | I185: 0.0127870056 | J185: -0.0007557024215 | K185: -0.00483821621
A186: ='Raw TPD'!A161 -> 515.04 | B186: ='Raw TPD'!B161+B$29 -> 0.03663 | C186: ='Raw TPD'!C161+C$29 -> 0.07398 | D186: ='Raw TPD'!D161+D$29 -> 0.002527 | E186: ='Raw TPD'!E161+E$29 -> 0.013785 | G186: 515.04 | H186: =MMULT(B186:E186,$H$12:$K$15) -> 0.007006129764 | I186: 0.01730202921 | J186: 0.001444640029 | K186: -0.02028480118
A187: ='Raw TPD'!A162 -> 517.44 | B187: ='Raw TPD'!B162+B$29 -> 0.040537 | C187: ='Raw TPD'!C162+C$29 -> 0.070073 | D187: ='Raw TPD'!D162+D$29 -> 8.5e-05 | E187: ='Raw TPD'!E162+E$29 -> 0.019158 | G187: 517.44 | H187: =MMULT(B187:E187,$H$12:$K$15) -> 0.006506646108 | I187: 0.01441627701 | J187: -2.765412599e-05 | K187: 0.002378949238
A188: ='Raw TPD'!A163 -> 519.85 | B188: ='Raw TPD'!B163+B$29 -> 0.050305 | C188: ='Raw TPD'!C163+C$29 -> 0.046142 | D188: ='Raw TPD'!D163+D$29 -> 0.001551 | E188: ='Raw TPD'!E163+E$29 -> 0.024042 | G188: 519.85 | H188: =MMULT(B188:E188,$H$12:$K$15) -> 0.006042514772 | I188: 0.005237763978 | J188: -0.0004632041064 | K188: 0.04174655293
A189: ='Raw TPD'!A164 -> 522.26 | B189: ='Raw TPD'!B164+B$29 -> 0.02442 | C189: ='Raw TPD'!C164+C$29 -> 0.065678 | D189: ='Raw TPD'!D164+D$29 -> -0.002357 | E189: ='Raw TPD'!E164+E$29 -> 0.010366 | G189: 522.26 | H189: =MMULT(B189:E189,$H$12:$K$15) -> 0.005363835248 | I189: 0.01642071876 | J189: -0.0002729373729 | K189: -0.02422087264
A190: ='Raw TPD'!A165 -> 525.86 | B190: ='Raw TPD'!B165+B$29 -> 0.03956 | C190: ='Raw TPD'!C165+C$29 -> 0.044676 | D190: ='Raw TPD'!D165+D$29 -> 0.001062 | E190: ='Raw TPD'!E165+E$29 -> 0.014762 | G190: 525.86 | H190: =MMULT(B190:E190,$H$12:$K$15) -> 0.006007311992 | I190: 0.008101417296 | J190: 0.0001288665122 | K190: 0.01067685197
A191: ='Raw TPD'!A166 -> 528.27 | B191: ='Raw TPD'!B166+B$29 -> 0.044444 | C191: ='Raw TPD'!C166+C$29 -> 0.062747 | D191: ='Raw TPD'!D166+D$29 -> -0.004799 | E191: ='Raw TPD'!E166+E$29 -> 0.016227 | G191: 528.27 | H191: =MMULT(B191:E191,$H$12:$K$15) -> 0.007660535417 | I191: 0.01349107153 | J191: -0.001778028113 | K191: -0.0002403638045
A192: ='Raw TPD'!A167 -> 530.67 | B192: ='Raw TPD'!B167+B$29 -> 0.031746 | C192: ='Raw TPD'!C167+C$29 -> 0.047118 | D192: ='Raw TPD'!D167+D$29 -> 0.003504 | E192: ='Raw TPD'!E167+E$29 -> 0.016716 | G192: 530.67 | H192: =MMULT(B192:E192,$H$12:$K$15) -> 0.004235575206 | I192: 0.008089021854 | J192: 0.0009384372626 | K192: 0.0146209517
A193: ='Raw TPD'!A168 -> 533.12 | B193: ='Raw TPD'!B168+B$29 -> 0.046886 | C193: ='Raw TPD'!C168+C$29 -> 0.074957 | D193: ='Raw TPD'!D168+D$29 -> 8.5e-05 | E193: ='Raw TPD'!E168+E$29 -> 0.012808 | G193: 533.12 | H193: =MMULT(B193:E193,$H$12:$K$15) -> 0.009168897211 | I193: 0.01799868973 | J193: 0.0006281378469 | K193: -0.02395060908
A194: ='Raw TPD'!A169 -> 535.47 | B194: ='Raw TPD'!B169+B$29 -> 0.030281 | C194: ='Raw TPD'!C169+C$29 -> 0.062259 | D194: ='Raw TPD'!D169+D$29 -> 0.003504 | E194: ='Raw TPD'!E169+E$29 -> 0.020623 | G194: 535.47 | H194: =MMULT(B194:E194,$H$12:$K$15) -> 0.003881656969 | I194: 0.01139593174 | J194: 0.0009541143537 | K194: 0.01399152819
A195: ='Raw TPD'!A170 -> 539.12 | B195: ='Raw TPD'!B170+B$29 -> 0.043468 | C195: ='Raw TPD'!C170+C$29 -> 0.064701 | D195: ='Raw TPD'!D170+D$29 -> 0.002039 | E195: ='Raw TPD'!E170+E$29 -> 0.028926 | G195: 539.12 | H195: =MMULT(B195:E195,$H$12:$K$15) -> 0.004677118888 | I195: 0.009278272848 | J195: -0.0002651650038 | K195: 0.04107901284
A196: ='Raw TPD'!A171 -> 541.52 | B196: ='Raw TPD'!B171+B$29 -> 0.060562 | C196: ='Raw TPD'!C171+C$29 -> 0.08033 | D196: ='Raw TPD'!D171+D$29 -> 0.000574 | E196: ='Raw TPD'!E171+E$29 -> 0.030879 | G196: 541.52 | H196: =MMULT(B196:E196,$H$12:$K$15) -> 0.008092809748 | I196: 0.01330350221 | J196: -0.0006339039837 | K196: 0.03401793606
A197: ='Raw TPD'!A172 -> 543.87 | B197: ='Raw TPD'!B172+B$29 -> 0.074237 | C197: ='Raw TPD'!C172+C$29 -> 0.067631 | D197: ='Raw TPD'!D172+D$29 -> -0.002845 | E197: ='Raw TPD'!E172+E$29 -> 0.0216 | G197: 543.87 | H197: =MMULT(B197:E197,$H$12:$K$15) -> 0.01197094098 | I197: 0.01268594318 | J197: -0.0014206801 | K197: 0.01457655923
A198: ='Raw TPD'!A173 -> 546.27 | B198: ='Raw TPD'!B173+B$29 -> 0.08254 | C198: ='Raw TPD'!C173+C$29 -> 0.040281 | D198: ='Raw TPD'!D173+D$29 -> -0.003822 | E198: ='Raw TPD'!E173+E$29 -> 0.018181 | G198: 546.27 | H198: =MMULT(B198:E198,$H$12:$K$15) -> 0.01290086791 | I198: 0.005483676481 | J198: -0.002133556381 | K198: 0.02861592035
A199: ='Raw TPD'!A174 -> 548.66 | B199: ='Raw TPD'!B174+B$29 -> 0.054212 | C199: ='Raw TPD'!C174+C$29 -> 0.074469 | D199: ='Raw TPD'!D174+D$29 -> -0.002845 | E199: ='Raw TPD'!E174+E$29 -> 0.025995 | G199: 548.66 | H199: =MMULT(B199:E199,$H$12:$K$15) -> 0.007843258646 | I199: 0.01349519532 | J199: -0.001624431478 | K199: 0.02275702502
A200: ='Raw TPD'!A175 -> 552.25 | B200: ='Raw TPD'!B175+B$29 -> 0.042979 | C200: ='Raw TPD'!C175+C$29 -> 0.048584 | D200: ='Raw TPD'!D175+D$29 -> 0.003504 | E200: ='Raw TPD'!E175+E$29 -> 0.0216 | G200: 552.25 | H200: =MMULT(B200:E200,$H$12:$K$15) -> 0.005284087946 | I200: 0.006751771016 | J200: 0.0005419056935 | K200: 0.03054139828
A201: ='Raw TPD'!A176 -> 554.65 | B201: ='Raw TPD'!B176+B$29 -> 0.052747 | C201: ='Raw TPD'!C176+C$29 -> 0.065678 | D201: ='Raw TPD'!D176+D$29 -> 0.002527 | E201: ='Raw TPD'!E176+E$29 -> 0.02746 | G201: 554.65 | H201: =MMULT(B201:E201,$H$12:$K$15) -> 0.006646575403 | I201: 0.009938703384 | J201: 5.910271065e-05 | K201: 0.03534348818
A202: ='Raw TPD'!A177 -> 557.04 | B202: ='Raw TPD'!B177+B$29 -> 0.046886 | C202: ='Raw TPD'!C177+C$29 -> 0.065189 | D202: ='Raw TPD'!D177+D$29 -> -0.002845 | E202: ='Raw TPD'!E177+E$29 -> 0.019646 | G202: 557.04 | H202: =MMULT(B202:E202,$H$12:$K$15) -> 0.007421059661 | I202: 0.01290382753 | J202: -0.001286155393 | K202: 0.009175492635
A203: ='Raw TPD'!A178 -> 559.48 | B203: ='Raw TPD'!B178+B$29 -> 0.055189 | C203: ='Raw TPD'!C178+C$29 -> 0.055421 | D203: ='Raw TPD'!D178+D$29 -> -0.001868 | E203: ='Raw TPD'!E178+E$29 -> 0.019646 | G203: 559.48 | H203: =MMULT(B203:E203,$H$12:$K$15) -> 0.008390590705 | I203: 0.009761267233 | J203: -0.001153714382 | K203: 0.01844017443
A204: ='Raw TPD'!A179 -> 561.82 | B204: ='Raw TPD'!B179+B$29 -> 0.044444 | C204: ='Raw TPD'!C179+C$29 -> 0.056398 | D204: ='Raw TPD'!D179+D$29 -> -0.001868 | E204: ='Raw TPD'!E179+E$29 -> 0.005482 | G204: 561.82 | H204: =MMULT(B204:E204,$H$12:$K$15) -> 0.009457261768 | I204: 0.01499706832 | J204: 9.952285608e-05 | K204: -0.03187636542
A205: ='Raw TPD'!A180 -> 564.25 | B205: ='Raw TPD'!B180+B$29 -> 0.043956 | C205: ='Raw TPD'!C180+C$29 -> 0.056398 | D205: ='Raw TPD'!D180+D$29 -> -0.000891 | E205: ='Raw TPD'!E180+E$29 -> 0.019158 | G205: 564.25 | H205: =MMULT(B205:E205,$H$12:$K$15) -> 0.006509617764 | I205: 0.01027681073 | J205: -0.0007135819921 | K205: 0.015351277
A206: ='Raw TPD'!A181 -> 567.78 | B206: ='Raw TPD'!B181+B$29 -> 0.051282 | C206: ='Raw TPD'!C181+C$29 -> 0.055421 | D206: ='Raw TPD'!D181+D$29 -> 0.001062 | E206: ='Raw TPD'!E181+E$29 -> 0.019646 | G206: 567.78 | H206: =MMULT(B206:E206,$H$12:$K$15) -> 0.007578117335 | I206: 0.009590546661 | J206: -5.269208429e-05 | K206: 0.01796629413
A207: ='Raw TPD'!A182 -> 570.16 | B207: ='Raw TPD'!B182+B$29 -> 0.031746 | C207: ='Raw TPD'!C182+C$29 -> 0.033932 | D207: ='Raw TPD'!D182+D$29 -> -0.000891 | E207: ='Raw TPD'!E182+E$29 -> 0.018181 | G207: 570.16 | H207: =MMULT(B207:E207,$H$12:$K$15) -> 0.003496136751 | I207: 0.003886357993 | J207: -0.001140660154 | K207: 0.03249814646
A208: ='Raw TPD'!A183 -> 572.55 | B208: ='Raw TPD'!B183+B$29 -> 0.060073 | C208: ='Raw TPD'!C183+C$29 -> 0.062747 | D208: ='Raw TPD'!D183+D$29 -> 0.002039 | E208: ='Raw TPD'!E183+E$29 -> 0.013785 | G208: =A208 -> 572.55 | H208: =MMULT(B208:E208,$H$12:$K$15) -> 0.01064570725 | I208: 0.01365402862 | J208: 0.0009816339145 | K208: -0.008979033285
A209: ='Raw TPD'!A184 -> 574.93 | B209: ='Raw TPD'!B184+B$29 -> 0.045421 | C209: ='Raw TPD'!C184+C$29 -> 0.059817 | D209: ='Raw TPD'!D184+D$29 -> -0.005287 | E209: ='Raw TPD'!E184+E$29 -> 0.008901 | G209: 574.93 | H209: =MMULT(B209:E209,$H$12:$K$15) -> 0.009227048112 | I209: 0.01511509952 | J209: -0.001397815068 | K209: -0.02278921592
A210: ='Raw TPD'!A185 -> 577.35 | B210: ='Raw TPD'!B185+B$29 -> 0.035165 | C210: ='Raw TPD'!C185+C$29 -> 0.052979 | D210: ='Raw TPD'!D185+D$29 -> 0.001062 | E210: ='Raw TPD'!E185+E$29 -> 0.007924 | G210: 577.35 | H210: =MMULT(B210:E210,$H$12:$K$15) -> 0.007030243913 | I210: 0.01301040421 | J210: 0.0009150149636 | K210: -0.02088642167
A211: ='Raw TPD'!A186 -> 580.87 | B211: ='Raw TPD'!B186+B$29 -> 0.044933 | C211: ='Raw TPD'!C186+C$29 -> 0.074469 | D211: ='Raw TPD'!D186+D$29 -> 0.001551 | E211: ='Raw TPD'!E186+E$29 -> 0.00939 | G211: 580.87 | H211: =MMULT(B211:E211,$H$12:$K$15) -> 0.009444796333 | I211: 0.01892759868 | J211: 0.001462500377 | K211: -0.03556904497
A212: ='Raw TPD'!A187 -> 583.24 | B212: ='Raw TPD'!B187+B$29 -> 0.046398 | C212: ='Raw TPD'!C187+C$29 -> 0.066166 | D212: ='Raw TPD'!D187+D$29 -> 8.5e-05 | E212: ='Raw TPD'!E187+E$29 -> 0.018669 | G212: 583.24 | H212: =MMULT(B212:E212,$H$12:$K$15) -> 0.007460791555 | I212: 0.01332650747 | J212: -8.102309954e-05 | K212: 0.004521673698
A213: ='Raw TPD'!A188 -> 585.66 | B213: ='Raw TPD'!B188+B$29 -> 0.042002 | C213: ='Raw TPD'!C188+C$29 -> 0.055421 | D213: ='Raw TPD'!D188+D$29 -> 0.001062 | E213: ='Raw TPD'!E188+E$29 -> 0.015739 | G213: 585.66 | H213: =MMULT(B213:E213,$H$12:$K$15) -> 0.006742410735 | I213: 0.01102138734 | J213: 0.0002919816086 | K213: 0.004127902581
A214: ='Raw TPD'!A189 -> 587.98 | B214: ='Raw TPD'!B189+B$29 -> 0.032723 | C214: ='Raw TPD'!C189+C$29 -> 0.046142 | D214: ='Raw TPD'!D189+D$29 -> -0.002357 | E214: ='Raw TPD'!E189+E$29 -> 0.013785 | G214: 587.98 | H214: =MMULT(B214:E214,$H$12:$K$15) -> 0.005209857911 | I214: 0.009204731115 | J214: -0.00102816831 | K214: 0.006101085897
... 41 more rows
